Cogmind - Beta 16 @@@ ROGUE MODE // 2025.12.21 @ 20:55:32 Player: C0-2MO Result: Destroyed by S-43 Plague with Heavy Machine Gun Performance ------------- Evolutions (8) 4000 Regions Visited (30) 6000 Robots Destroyed (181) 905 Value Destroyed (7163) 7163 Prototype IDs (124) 2480 Alien Tech Used (11) 2200 Bonus (28324) 28324 TOTAL SCORE: 51072 Bonus ------- High Alert Combat Kills 709 Follower Combat Kills 2115 Entered Garrisons 400 Used RIF Installer 1000 Delivered SUBCON Basin 2000 Registered with UFD 300 Met Optimus in HQ 500 Met Data Miner 300 Used Core Reset Matrix 3000 Met Sigix 2000 Destroyed Superfortress 15000 Met Optimus at Protoforge 1000 Cogmind --------- Core Integrity 0/1450 Matter 230/300 Energy 66/100 System Corruption 0% Temperature Cool (0) Movement Core (50) Location -2/Protoforge Parts ------- > --- POWER (2) -------- (None) > --- PROPULSION (6) --- (None) > --- UTILITY (10) ----- Enhanced Optical Array Advanced Sensor Array Advanced Signal Interpreter Advanced Target Analyzer Improved Hacking Suite Advanced Hacking Suite > --- WEAPON (6) ------- (None) > --- INVENTORY (5) ---- Concept NT7 Matterbank (750) Phase Redirector Sigix Containment Pod Peak State ------------ > --- POWER ------------ Improved Fusion Compressor > --- PROPULSION ------- Nuclear Pulse Array Impulse Thruster Array Impulse Thruster Array > --- UTILITY ---------- Large Storage Unit Advanced Energy Well Enhanced Optical Array Advanced Sensor Array Advanced Signal Interpreter Advanced Target Analyzer Experimental Reaction Control System Improved Hacking Suite Advanced Hacking Suite Experimental Hacking Suite > --- WEAPON ----------- Core Cannon Sigix Broadsword > --- INVENTORY -------- Micro Antimatter Reactor Q-thruster Advanced Focal Shield Phase Redirector Authchip [Propulsion] Improved System Restoration Module Supercharged TR Cooled Nova Cannon Sigix Containment Pod Sigix Corpse Sigix Corpse [Rating: 179] Favorites ----------- Power Micro Antimatter Reactor Engine Light Ion Engine Power Core Micro Fission Core Reactor Micro Antimatter Reactor Propulsion Cooled Cesium-ion Thruster Treads Improved Treads Leg Cargo Legs Wheel Wheel Hover Unit Combat Antigrav System Flight Unit Cooled Cesium-ion Thruster Utility Hacking Suite Device Advanced Sensor Array Storage Medium Storage Unit Processor Advanced Signal Interpreter Hackware Hacking Suite Protection Scrap Shield Artifact Phase Armor Weapon Vibroblade Energy Gun Riot Gun Energy Cannon Cooled Plasma Cannon Ballistic Gun Coil Gun Ballistic Cannon Enhanced Gauss Cannon Launcher Guided EMP Blaster Special Weapon Improved Remote Datajack Impact Weapon Power Maul Slashing Weapon Vibroblade Special Melee Weapon Improved Datajack Build | -11 -10 -10 -8 -8 -6 -6 -6 -6 -6 -6 -6 -6 -5 -5 -5 -5 -5 -5 -4 -4 -4 -4 -4 -4 -3 -3 -3 -2 -2 -2 ------- Run | Yrd Mat Sub Rec Scr Fac Was Fac Gar Fac Low Low Dat Pro Fac Gar Fac Upp Upp Fac Was Fac Upp Upp Zhi Pro Res Tes Res Qua Frg Slots Evolved 16 | . . . . . 8 . . . . . . . . 2 . . . . 2 . . . . . . 2 . 2 . . Power 1 | . . . . . . . . . . . . . . 1 . . . . . . . . . . . . . . . . Propulsion 4 | . . . . . 3 . . . . . . . . . . . . . 1 . . . . . . . . . . . Utility 8 | . . . . . 5 . . . . . . . . 1 . . . . 1 . . . . . . 1 . . . . Weapon 3 | . . . . . . . . . . . . . . . . . . . . . . . . . . 1 . 2 . . Parts Attached 387 | 8 6 11 1 4 32 . 9 1 8 1 . . . 80 16 14 1 . 24 5 13 6 2 7 . 16 9 36 55 22 Power 42 | 1 . 3 . . 4 . 3 . 1 . . . . 11 2 . . . 1 . 1 . . 1 . 2 1 4 3 4 Engine 10 | 1 . 3 . . 2 . 2 . . . . . . 1 . . . . . . . . . . . . . . 1 . Core 19 | . . . . . 1 . 1 . 1 . . . . 10 2 . . . . . 1 . . . . . . . . 3 Reactor 13 | . . . . . 1 . . . . . . . . . . . . . 1 . . . . 1 . 2 1 4 2 1 Propulsion 102 | 2 2 1 . . 12 . 1 . 3 . . . . 16 7 5 . . 8 2 4 2 . 4 . 4 1 11 12 5 Treads 7 | 1 2 . . . . . . . . . . . . . . . . . . . . . . . . . . . 4 . Leg 16 | . . 1 . . . . . . . . . . . . 6 . . . . . . . . 3 . . . 5 1 . Wheel 3 | 1 . . . . . . . . . . . . . . . . . . . . . . . . . . . . 2 . Hover 23 | . . . . . . . . . . . . . . 15 1 . . . 4 . . 1 . 1 . . . . 1 . Flight 53 | . . . . . 12 . 1 . 3 . . . . 1 . 5 . . 4 2 4 1 . . . 4 1 6 4 5 Utility 169 | 2 1 1 1 2 11 . 2 1 4 1 . . . 35 4 8 1 . 8 2 7 4 2 2 . 8 6 12 32 12 Device 82 | 1 . . . 2 3 . 1 1 2 . . . . 18 2 3 1 . 6 . 5 2 1 . . 5 4 3 16 6 Storage 23 | 1 1 . . . 1 . . . . . . . . 4 . 1 . . . . 1 . . 2 . 1 . 2 8 1 Processor 22 | . . . . . 3 . . . . . . . . 4 1 1 . . 1 1 . 1 1 . . 1 . 4 2 2 Hackware 21 | . . . 1 . 2 . 1 . 1 . . . . 3 1 3 . . 1 . 1 1 . . . 1 1 1 1 2 Protection 20 | . . 1 . . 2 . . . 1 1 . . . 6 . . . . . 1 . . . . . . 1 2 4 1 Artifact 1 | . . . . . . . . . . . . . . . . . . . . . . . . . . . . . 1 . Weapon 74 | 3 3 6 . 2 5 . 3 . . . . . . 18 3 1 . . 7 1 1 . . . . 2 1 9 8 1 Energy Gun 24 | 2 3 3 . 1 1 . 1 . . . . . . 7 2 . . . . . . . . . . 1 . 1 2 . Energy Cannon 8 | . . . . . . . . . . . . . . 1 . 1 . . 2 . . . . . . . 1 2 1 . Ballistic Gun 9 | 1 . 1 . . 1 . . . . . . . . 3 . . . . . 1 . . . . . . . 1 . 1 Ballistic Cannon 9 | . . . . . 1 . . . . . . . . 1 . . . . . . . . . . . . . 4 3 . Launcher 5 | . . 1 . . . . 2 . . . . . . 1 . . . . . . . . . . . . . . 1 . Special Weapon 3 | . . . . . 1 . . . . . . . . . 1 . . . . . 1 . . . . . . . . . Impact Weapon 1 | . . . . . . . . . . . . . . . . . . . . . . . . . . . . 1 . . Slashing Weapon 10 | . . 1 . . . . . . . . . . . 4 . . . . 3 . . . . . . 1 . . 1 . Piercing Weapon . | . . . . . . . . . . . . . . . . . . . . . . . . . . . . . . . Special Melee Weapon 5 | . . . . 1 1 . . . . . . . . 1 . . . . 2 . . . . . . . . . . . Unidentified Prototypes 62 | . 1 1 . . 7 . 3 . . 2 . . . 2 . . . . . . . . . 5 . 3 6 4 17 11 Parts Lost 101 | . . 3 . . 2 . 1 . 2 . . . . 25 13 4 . . 8 . 4 3 . . 3 . 3 16 1 13 Power 16 | . . 1 . . . . . . . . . . . 4 2 1 . . 1 . 1 . . . 1 . . 2 1 2 Propulsion 37 | . . . . . . . . . 2 . . . . 8 4 . . . 2 . 1 2 . . . . 1 10 . 7 Utility 34 | . . . . . 1 . 1 . . . . . . 8 5 2 . . 4 . 2 1 . . 2 . 2 3 . 3 Weapon 14 | . . 2 . . 1 . . . . . . . . 5 2 1 . . 1 . . . . . . . . 1 . 1 Highest Loss Streak 9 | . . 1 . . 2 . 1 . 2 . . . . 9 8 2 . . 6 . 4 2 . . 2 . 3 9 1 6 To Critical Strikes . | . . . . . . . . . . . . . . . . . . . . . . . . . . . . . . . Average Backups 9 | 2 7 4 5 12 11 10 9 9 8 9 9 9 8 10 13 10 10 10 9 9 9 9 10 9 9 9 8 7 10 9 Power 1 | . 1 1 1 1 1 1 1 1 1 1 1 1 1 . 2 1 1 1 . . . . . . . . . . 1 1 Propulsion . | 1 3 . . . 1 2 1 1 . 2 2 2 2 . . . . . . . . . . . . . 1 . . . Utility 4 | . . . . 5 5 6 5 5 5 5 5 5 5 5 8 9 9 9 8 7 7 6 6 6 7 6 5 3 4 5 Weapon 2 | . 1 2 4 4 1 1 1 1 1 1 1 1 . 2 2 . . . . 1 1 1 4 1 1 1 1 1 3 1 Tool/Special . | . . . . . . . . . . . . . . . . . . . . . . . . . . . . . . . Unused Backups 29 | . 1 3 . . 10 . 1 2 . . . . . . . 2 . . 1 . 1 . 1 . . . 1 1 3 2 Power 4 | . . . . . 1 . . . . . . . . . . . . . . . 1 . . . . . . 1 . 1 Propulsion 8 | . 1 3 . . 3 . 1 . . . . . . . . . . . . . . . . . . . . . . . Utility 12 | . . . . . 5 . . 2 . . . . . . . 2 . . . . . . 1 . . . 1 . . 1 Weapon 1 | . . . . . . . . . . . . . . . . . . . 1 . . . . . . . . . . . Tool/Special 4 | . . . . . 1 . . . . . . . . . . . . . . . . . . . . . . . 3 . Average Slot Usage (%) 79 | . 100 68 69 78 91 100 97 98 97 93 93 93 91 88 75 90 72 72 85 66 86 67 65 89 84 75 85 64 65 60 Engine 4 | . 14 11 11 11 5 6 2 . . . . . . . . . . . . 3 3 . . . . . . . 2 1 Core 2 | . . . . . . . 3 6 6 6 6 6 6 9 7 10 5 5 5 4 6 5 5 5 . . . . . . Reactor 1 | . . . . . . . . . . . . . . . . . . . 4 . . . . 3 5 4 4 4 4 3 Leg 4 | . . 8 11 12 . . . . . . . . . . 14 6 . . . . . . . 11 15 1 . 6 . . Hover 2 | . . . . . . . . . . . . . . 23 9 . . . 7 . . 1 5 1 . . . . . . Flight 11 | . . . . . 27 33 33 33 31 31 31 31 31 1 . 20 27 27 14 15 19 13 10 10 10 16 17 4 15 13 Device 8 | . 14 . . 2 10 6 11 13 16 17 18 18 18 14 13 12 5 5 12 10 10 6 10 10 10 12 18 4 8 8 Storage 6 | . 14 9 11 11 6 6 6 6 6 6 6 6 6 5 5 5 5 5 5 5 5 5 5 5 5 4 4 3 3 3 Processor 6 | . . . . . 10 13 7 6 6 6 6 6 6 8 2 5 5 5 5 7 10 11 15 15 15 15 10 12 12 12 Hackware 7 | . . . 3 10 5 6 7 6 6 6 6 6 6 5 5 18 16 16 19 10 13 13 15 15 8 4 10 12 13 12 Protection 5 | . . 11 11 4 7 13 11 13 8 6 6 6 6 3 1 . . . . 2 4 . . . . . . 1 . . Energy Gun 6 | . 28 19 19 21 . . . . . . . . . 4 5 1 . . . . . . . . . . . 1 . . Slashing Weapon 4 | . . 1 2 . 5 6 5 4 6 6 6 6 6 5 5 1 . . 5 8 14 11 . 12 15 13 18 4 2 1 Special Melee Weapon 1 | . . . . 2 3 6 3 4 6 6 6 6 4 . . . . . 1 . . . . . . . . . . . Peak Build Rating 179 | 7 14 49 49 34 70 69 75 75 72 67 60 60 68 108 100 82 67 61 110 96 110 96 77 126 126 126 134 151 162 179 Average Rating 72 | 5 13 38 37 30 50 69 67 70 65 59 60 60 60 83 64 69 61 61 97 76 103 86 76 116 116 115 125 103 130 127 On Entrance 72 | . 7 14 48 33 29 69 69 68 70 60 60 60 60 60 97 61 61 61 61 64 88 91 77 77 126 113 126 126 151 150 Avg Prop Armor Cover (%) 9 | 20 14 . . 36 2 . . . . . . . . 6 . 4 4 . 4 . . 8 8 12 13 13 . . 9 . Naked Turns . | . . . . . . . . . . . . . . . . . . . . . . . . . . . . . . . Heaviest Build 82 | 13 15 70 69 67 62 25 31 32 31 27 27 27 36 64 61 59 20 20 43 29 36 28 17 41 47 43 43 82 82 44 Greatest Support 128 | 10 46 55 55 55 55 43 43 43 43 35 28 28 28 70 80 80 30 30 44 34 42 34 19 90 90 90 46 128 128 48 Greatest Overweight (x) 10 | 1 1 1 1 1 1 . . 10 1 . . . 1 4 2 1 . . 1 1 . 1 . 2 . . . 1 10 1 Average Overweight (x) . | . . . 1 . . . . . . . . . . . . . . . . . . . . . . . . . . . Largest Inventory Capacity 25 | 8 20 20 20 20 20 10 10 10 10 10 10 10 10 20 15 15 10 10 10 10 10 10 10 10 10 10 10 10 25 15 Average Capacity 13 | 7 8 17 20 19 11 10 10 10 10 10 10 10 10 14 15 11 10 10 10 10 10 10 10 10 10 10 10 7 14 14 Most Carried 20 | 4 8 20 20 20 18 10 10 10 10 10 10 10 10 15 15 15 10 10 10 10 10 10 10 10 10 10 10 10 15 15 Average Carried 11 | 2 7 15 11 12 11 10 9 9 9 9 10 10 9 11 14 10 10 10 9 9 9 9 10 9 9 9 9 6 12 13 Final Capacity 20 | 8 8 20 20 20 10 10 10 10 10 10 10 10 10 15 15 10 10 10 10 10 10 10 10 10 10 10 10 5 15 5 Final Carried 20 | 4 8 20 7 17 10 10 10 10 10 10 10 10 10 15 15 10 10 10 10 9 10 10 10 9 10 10 9 5 15 4 Class Distribution -------------------- 31% | Mutant 11% | Hacker-Scout 9% | Sprinter 7% | Hacker-Sprinter 5% | Hacker-Gladiator 4% | Infiltrator-Ninja 4% | Scout 3% | Gladiator 3% | Scavenger-Mutant Dominant Class ---------------- Mutant | -10/Materials Mutant | -10/Subcaves Mutant | -8/Recycling Mutant | -8/Scraptown Sprinter | -6/Factory Sprinter | -6/Waste Sprinter | -6/Factory Scout | -6/Garrison Infiltrator-Ninja | -6/Factory Infiltrator-Ninja | -6/Lower Caves Infiltrator-Ninja | -6/Lower Caves Infiltrator-Ninja | -6/Data Miner Infiltrator-Ninja | -5/Proximity Caves Scavenger-Mutant | -5/Factory Scavenger-Gunner | -5/Garrison Scavenger-Sprinter | -5/Factory Hacker-Sprinter | -5/Upper Caves Hacker-Sprinter | -5/Upper Caves Hacker-Sprinter | -4/Factory Sprinter | -4/Waste Hacker-Sprinter | -4/Factory Hacker-Sprinter | -4/Upper Caves Hacker-Sprinter | -4/Upper Caves Hacker-Gladiator | -4/Zhirov Gladiator | -3/Proximity Caves Scavenger-Sprinter | -3/Research Hacker-Scout | -3/Testing Hacker-Gladiator | -2/Research Hacker-Scout | -2/Quarantine Hacker-Scout | -2/Protoforge Resources | -11 -10 -10 -8 -8 -6 -6 -6 -6 -6 -6 -6 -6 -5 -5 -5 -5 -5 -5 -4 -4 -4 -4 -4 -4 -3 -3 -3 -2 -2 -2 ----------- Run | Yrd Mat Sub Rec Scr Fac Was Fac Gar Fac Low Low Dat Pro Fac Gar Fac Upp Upp Fac Was Fac Upp Upp Zhi Pro Res Tes Res Qua Frg Matter Collected 8968 | 280 . 330 35 10 697 . 271 420 564 61 102 . 106 1377 373 140 121 30 314 239 208 55 40 150 5 200 22 592 1090 1136 Remotely 790 | . . . . . . . . . . . . . . . . . . . . . . . . . . . . . . 790 Salvage Created 10914 | 90 . 902 . . 1128 . 352 461 721 . . . 141 2728 783 137 . . 248 . 602 58 . 316 355 284 22 1119 389 78 Parts 412 | 4 . 48 . . 32 . 6 22 26 . . . 5 104 33 3 . . 8 . 19 5 . 3 8 16 5 47 8 10 Haulers Intercepted 12 | . . . . . 4 . . . 2 . . . . 3 . . . . 1 . . . . . . 1 . 1 . . Recyclers Shooed 3 | . . . . . . . . . 1 . . . . 2 . . . . . . . . . . . . . . . . Parts Field Recycled . | . . . . . . . . . . . . . . . . . . . . . . . . . . . . . . . Retrieved Matter . | . . . . . . . . . . . . . . . . . . . . . . . . . . . . . . . Parts Self-Destructed 30 | . . 13 . . . . . . . . . . 4 . . . . . . . . 5 . 1 7 . . . . . Prevented 2 | . . 1 . . . . . . . . . . 1 . . . . . . . . . . . . . . . . . Parts Restored . | . . . . . . . . . . . . . . . . . . . . . . . . . . . . . . . Kills | -11 -10 -10 -8 -8 -6 -6 -6 -6 -6 -6 -6 -6 -5 -5 -5 -5 -5 -5 -4 -4 -4 -4 -4 -4 -3 -3 -3 -2 -2 -2 ------- Run | Yrd Mat Sub Rec Scr Fac Was Fac Gar Fac Low Low Dat Pro Fac Gar Fac Upp Upp Fac Was Fac Upp Upp Zhi Pro Res Tes Res Qua Frg Combat Hostiles Destroyed 100 | . . 19 . . 2 . . 8 . . . . 5 26 19 . . . . . 2 1 . . 5 . . 9 4 . Melee 41 | . . . . . . . . . . . . . 1 14 6 . . . . . 2 1 . . 5 . . 8 4 . Guns 26 | . . 12 . . 2 . . . . . . . . 7 5 . . . . . . . . . . . . . . . Cannons 6 | . . . . . . . . . . . . . . . 5 . . . . . . . . . . . . 1 . . AOE 20 | . . 4 . . . . . 8 . . . . 4 1 3 . . . . . . . . . . . . . . . Classes Destroyed 20 | 2 . 3 . . 5 . . 1 1 . . . . 5 2 . . . . . . . . . 1 . . . . . Worker 10 | . . . . . . . . . 2 . . . . 6 . . . . . . 1 . . . . . . 1 . . Builder 8 | . . . . . . . . . . . . . . 3 . . . . 1 . 1 . . . . 2 . . . 1 Tunneler 1 | 1 . . . . . . . . . . . . . . . . . . . . . . . . . . . . . . Hauler 12 | . . . . . 4 . . . 2 . . . . 3 . . . . 1 . . . . . . 1 . 1 . . Recycler 26 | 1 . . . . 4 . 1 . 3 . . . . 7 . 1 . . 1 . 2 . . . . 1 . 4 1 . Minesweeper 1 | . . . . . . . . . . . . . . . . . . . . . . . . . 1 . . . . . Mechanic 2 | . . . . . . . . . . . . . . 2 . . . . . . . . . . . . . . . . Operator 6 | . . . . . 1 . . . 1 . . . . 1 . . . . . . . . . . . . 1 . . 2 Drone 3 | . . . . . . . . . . . . . . 2 . . . . . . . . . . . . . . 1 . Turret 2 | . . 2 . . . . . . . . . . . . . . . . . . . . . . . . . . . . Watcher 15 | . . . . . 3 . 3 . 2 . . . . 3 . . . . . . 3 . . . . 1 . . . . Swarmer 34 | . . 5 . . . . . 6 . . . . 5 7 5 . . . . . . . . . 1 . . 5 . . Cutter 3 | . . . . . . . . . . . . . . . 3 . . . . . . . . . . . . . . . Saboteur 2 | . . . . . . . . 2 . . . . . . . . . . . . . . . . . . . . . . Grunt 21 | . . . . . . . . . . . . . . 7 9 . . . . . . . . . 3 . . . 2 . Sentry 2 | . . . . . . . . . . . . . . . 1 . . . . . . . . . 1 . . . . . Hunter 6 | . . . . . . . . . . . . . . 2 1 . . . . . 2 . . . . . . 1 . . Programmer 13 | . . . . . 1 . . . . . . . . 8 . . . . . . . 1 . . . . . 3 . . Behemoth 2 | . . . . . 1 . . . . . . . . . 1 . . . . . . . . . . . . . . . Quarantine Guard 1 | . . . . . . . . . . . . . . . . . . . . . . . . . . . . . 1 . Subdweller 14 | . . 14 . . . . . . . . . . . . . . . . . . . . . . . . . . . . Best Kill Streak 11 | 2 . 5 . . 2 . 2 3 3 . . . 4 11 7 1 . . 1 . 3 1 . . 2 2 1 7 1 1 Combat Bots Only 7 | . . 5 . . 1 . . 3 . . . . 4 5 7 . . . . . 2 1 . . 2 . . 6 1 . Max Kills in Single Turn 4 | 1 . 2 . . 1 . 1 2 1 . . . 2 4 3 1 . . 1 . 1 1 . . 1 1 1 2 1 1 Gunslinging 1 | . . . . . . . . . . . . . . 1 . . . . . . . . . . . . . . . . Exploded 2 | . . 2 . . . . . 2 . . . . 2 1 2 . . . . . . . . . . . . . . . Melee 1 | . . . . . . . . . . . . . 1 1 1 . . . . . 1 1 . . 1 . . 1 1 . Uniques/NPCs Destroyed . | . . . . . . . . . . . . . . . . . . . . . . . . . . . . . . . Combat | -11 -10 -10 -8 -8 -6 -6 -6 -6 -6 -6 -6 -6 -5 -5 -5 -5 -5 -5 -4 -4 -4 -4 -4 -4 -3 -3 -3 -2 -2 -2 -------- Run | Yrd Mat Sub Rec Scr Fac Was Fac Gar Fac Low Low Dat Pro Fac Gar Fac Upp Upp Fac Was Fac Upp Upp Zhi Pro Res Tes Res Qua Frg Hostile Shots Fired 1408 | . . 163 . . 88 . 28 3 54 3 . . 9 345 107 26 . 3 98 . 88 23 2 . 25 4 22 174 36 107 Missed 598 | . . 62 . . 48 . 12 1 32 2 . . 4 129 20 15 . 3 57 . 46 12 . . 7 2 8 65 23 50 Hits 810 | . . 101 . . 40 . 16 2 22 1 . . 5 216 87 11 . . 41 . 42 11 2 . 18 2 14 109 13 57 Melee 11 | . . . . . . . . . . . . . . . 3 . . . 1 . . . . . . . . . . 7 Projectile 799 | . . 101 . . 40 . 16 2 22 1 . . 5 216 84 11 . . 40 . 42 11 2 . 18 2 14 109 13 50 AOE 5 | . . 3 . . . . . . . . . . . . . . . . 2 . . . . . . . . . . . Critical Strikes 34 | . . 2 . . 1 . . . . . . . . 11 4 . . . 2 . . 1 . . . . 2 4 1 6 Actively Blocked 5 | . . . . . . . . . . . . . . . . . . . . . . . . . . . 2 3 . . Part Disruptions 3 | . . . . . . . . . . . . . . 1 . . 1 . . . . . . . . . . 1 . . Damage Taken 17538 | 30 . 1463 . . 853 . 364 22 438 25 . . 87 3989 1949 343 65 . 1003 . 730 251 41 . 381 39 306 2531 379 2249 Core 3749 | 30 . 165 . . 186 . 190 . 59 . . . 16 507 427 33 25 . 371 . 193 33 41 . 46 . 95 572 119 641 Absorbed by Shields 73 | . . . . . . . . 9 . . . . . . . . . . . . . . . . . . . . . 64 Redirected to Shielding 249 | . . . . . . . 11 . 24 16 . . 9 52 . . . . . . 137 . . . . . . . . . Ignored by Resistances 23 | . . . . . . . . . . . . . . . . . . . . . . . . . . . . . 23 . Regen/Repaired (Parts) 1223 | . . . . 54 218 . . . 81 . . . . 155 . 151 . . . 40 159 . . . . 30 . 35 98 202 Core Remaining (%) 48 | 88 . . . 22 . . . . . . . . 46 . . . . . . . . . . . 40 . 92 . . . Volleys Fired 270 | 5 . 70 . . 15 . 2 8 . . . . 7 50 41 19 . . 25 . . . . . . . . 12 . 16 Largest 5 | 2 . 2 . . 2 . 1 1 . . . . 1 3 3 1 . . 1 . . . . . . . . 5 . 1 Hottest 353 | 90 . 95 . . 100 . 43 50 . . . . 50 180 185 90 . . 98 . . . . . . . . 353 . 300 Shots Fired 417 | 10 . 118 . . 25 . 2 8 . . . . 6 102 57 19 . . 25 . . . . . . . . 29 . 16 Gun 293 | 10 . 114 . . 25 . . . . . . . . 100 27 . . . . . . . . . . . . 5 . 12 Cannon 81 | . . . . . . . . . . . . . . . 27 3 . . 23 . . . . . . . . 24 . 4 Launcher 25 | . . 4 . . . . 2 8 . . . . 6 2 3 . . . . . . . . . . . . . . . Special 18 | . . . . . . . . . . . . . . . . 16 . . 2 . . . . . . . . . . . Kinetic 119 | . . 9 . . 13 . . . . . . . . 39 27 . . . . . . . . . . . . 19 . 12 Thermal 96 | 5 . 5 . . 10 . . . . . . . . 9 27 3 . . 23 . . . . . . . . 10 . 4 Explosive 6 | . . . . . . . 2 . . . . . . 2 2 . . . . . . . . . . . . . . . Electromagnetic 178 | 5 . 104 . . 2 . . 8 . . . . 6 52 1 . . . . . . . . . . . . . . . Robot Hit Streak 23 | 5 . 23 . . 12 . . . . . . . . 14 5 4 . . 3 . . . . . . . . 4 . 13 Robot Miss Streak 9 | 4 . 9 . . 2 . . . . . . . . 2 4 2 . . 2 . . . . . . . . 4 . 1 Penetration Max 2 | . . . . . . . . . . . . . . 2 . . . . . . . . . . . . . 2 . . Secondary Targets 4 | . . 2 . . . . . . . . . . . 2 . . . . . . . . . . . . . . . . Max Gunslinging Chain 1 | . . 1 . . . . . . . . . . . 1 . . . . . . . . . . . . . . . . Shots Hit Robots 529 | 6 . 90 . . 56 . 10 9 17 . . 1 1 154 51 13 . . 12 . 17 1 . 5 21 5 1 33 8 18 Core Hits 254 | 3 . 49 . . 19 . 5 14 7 . . . 6 65 34 1 . . 2 . 7 1 . 1 9 3 1 18 5 4 Critical Kills 2 | . . . . . . . . . . . . . . . . . . . . . . . . . . . . 2 . . Critical Parts Destroyed 8 | . . . . . 1 . . . . . . . . . . . . . . . . . . . . . . 4 . 3 Critical Strikes 48 | . . . . . 3 . . . . . . . . 16 8 . . . . . 3 . . . 2 . . 10 2 4 Burn 3 | . . . . . . . . . . . . . . 2 . . . . . . . . . . . . . 1 . . Destroy 10 | . . . . . 1 . . . . . . . . . . . . . . . . . . . . . . 6 . 3 Blast 2 | . . . . . . . . . . . . . . . 2 . . . . . . . . . . . . . . . Sever 33 | . . . . . 2 . . . . . . . . 14 6 . . . . . 3 . . . 2 . . 3 2 1 Melee Attacks 783 | . . 7 4 . 116 . 53 13 83 3 2 1 4 146 60 6 . . 35 . 45 5 . 11 29 23 10 53 51 23 Impact 16 | . . . . . . . . . . . . . . . . . . . . . . . . . . . . . 16 . Slashing 760 | . . 7 4 . 114 . 52 13 83 3 2 . 4 146 60 6 . . 32 . 45 5 . 11 29 23 10 53 35 23 Piercing . | . . . . . . . . . . . . . . . . . . . . . . . . . . . . . . . Sneak Attacks 71 | . . . . . 11 . 2 . 9 . . 1 . 19 . 2 . . 5 . 6 . . . 1 4 1 4 3 3 Combat Hostiles 5 | . . . . . . . . . 1 . . . . 2 . . . . . . . . . . . . . . 2 . Follow-up Attacks 54 | . . . . . . . . . . . . . . 21 9 . . . . . 5 . . . 5 . . 14 . . Damage Inflicted 24591 | 103 . 1990 40 . 2389 . 524 806 1184 . . . 212 6756 2642 197 . . 410 . 1310 57 . 546 1108 540 110 1806 709 1152 Guns 4125 | 68 . 1456 . . 551 . . . . . . . . 1429 171 . . . . . . . . . . . . 58 . 392 Cannons 1291 | . . . . . . . . . . . . . . . 542 . . . 167 . . . . . . . . 374 . 208 Explosions 2713 | 35 . 534 . . . . . 281 . . . . 173 861 829 . . . . . . . . . . . . . . . Melee 16389 | . . . . . 1822 . 524 525 1184 . . . 39 4449 1100 197 . . 243 . 1310 57 . 546 1108 540 110 1374 709 552 Ramming 73 | . . . 40 . 16 . . . . . . . . 17 . . . . . . . . . . . . . . . . Kinetic 2541 | . . 290 . . 309 . . . . . . . . 675 542 . . . . . . . . . . . . 333 . 392 Thermal 1360 | 60 . 267 . . 216 . . . . . . . . 172 171 . . . 167 . . . . . . . . 99 . 208 Explosive 1507 | . . . . . . . . . . . . . . 728 779 . . . . . . . . . . . . . . . Electromagnetic 2721 | 43 . 1433 . . 26 . . 281 . . . . 173 715 50 . . . . . . . . . . . . . . . Impact 188 | . . . . . . . . . . . . . . . . . . . . . . . . . . . . . 188 . Slashing 16201 | . . . . . 1822 . 524 525 1184 . . . 39 4449 1100 197 . . 243 . 1310 57 . 546 1108 540 110 1374 521 552 Piercing . | . . . . . . . . . . . . . . . . . . . . . . . . . . . . . . . Highest Corruption 25 | . . . . . . . 3 3 7 7 7 7 7 19 19 25 25 25 1 1 1 . . . . 1 1 4 5 2 Average Corruption 7 | . . . . . . . 2 3 4 7 7 7 7 9 19 20 25 25 1 1 1 . . . . 1 1 2 4 1 Corruption Purged 4 | . . . . . . . . . . . . . . . . . . . . . 1 . . . . . 1 . . 2 Corruption Blocked . | . . . . . . . . . . . . . . . . . . . . . . . . . . . . . . . Effects 246 | . . . . . . . 20 4 25 4 3 1 5 60 49 29 2 1 . . 2 . . . . . . 19 19 3 Message Errors 50 | . . . . . . . 1 . 6 . 1 1 . 10 10 8 . . . . 1 . . . . . . 5 7 . Matter Fused 72 | . . . . . . . 11 2 9 1 . . 2 15 13 7 . 1 . . 1 . . . . . . 3 6 1 Heat Flow Errors 25 | . . . . . . . 2 1 3 . 1 . 1 6 3 4 . . . . . . . . . . . 1 2 1 Energy Discharges 27 | . . . . . . . 3 . 2 . . . 1 8 9 2 . . . . . . . . . . . . 2 . Parts Rejected 4 | . . . . . . . . . . . . . . 2 1 . . . . . . . . . . . . 1 . . Parts Fused 2 | . . . . . . . . . . 1 . . . . . . . . . . . . . . . . . . 1 . Data Loss (minor) 30 | . . . . . . . 1 1 4 1 . . . 8 2 6 1 . . . . . . . . . . 4 1 1 Data Loss (major) 12 | . . . . . . . 1 . . 1 1 . . 4 3 . 1 . . . . . . . . . . 1 . . Misfires 5 | . . . . . . . . . . . . . . 2 1 . . . . . . . . . . . . 2 . . Alerts 6 | . . . . . . . 1 . 1 . . . . 1 1 1 . . . . . . . . . . . 1 . . Misdirections 5 | . . . . . . . . . . . . . . 3 1 1 . . . . . . . . . . . . . . Weapon Failures 8 | . . . . . . . . . . . . . 1 1 5 . . . . . . . . . . . . 1 . . Overload Shots 3 | . . . . . . . . . . . . . . . . . . . . . . . . . . . . . . 3 Effects 1 | . . . . . . . . . . . . . . . . . . . . . . . . . . . . . . 1 Short Circuit 1 | . . . . . . . . . . . . . . . . . . . . . . . . . . . . . . 1 Overflow Damage 3215 | . . 36 . . 192 . 133 32 234 . . . 9 703 73 73 . . 210 . 342 . . 364 97 175 . 231 223 88 Projectiles 35 | . . . . . . . . . . . . . . . . . . . 27 . . . . . . . . . . 8 Explosions 139 | . . 36 . . . . . . . . . . . 70 33 . . . . . . . . . . . . . . . Melee 3041 | . . . . . 192 . 133 32 234 . . . 9 633 40 73 . . 183 . 342 . . 364 97 175 . 231 223 80 Knockbacks 5 | . . . . . . . . . . . . . . . 3 . . . . . . . . . . . . 2 . . Impact . | . . . . . . . . . . . . . . . . . . . . . . . . . . . . . . . Kinetic 5 | . . . . . . . . . . . . . . . 3 . . . . . . . . . . . . 2 . . Secondary . | . . . . . . . . . . . . . . . . . . . . . . . . . . . . . . . Self-Inflicted Damage 347 | 30 . 94 . . . . 15 . . . . . 11 32 165 . . . . . . . . . . . . . . . Shots 9 | 1 . 3 . . . . 1 . . . . . 1 1 2 . . . . . . . . . . . . . . . Rammed 1 | . . . . . . . . . . . . . . 1 . . . . . . . . . . . . . . . . Targets Rammed 8 | . . . 6 . 1 . . . . . . . . 1 . . . . . . . . . . . . . . . . Kicked 7 | . . . 6 . 1 . . . . . . . . . . . . . . . . . . . . . . . . . Crushed . | . . . . . . . . . . . . . . . . . . . . . . . . . . . . . . . Highest Temperature 482 | 162 . 9 . . 50 161 146 145 223 6 202 . 218 354 268 267 295 . 64 . . . . . . . . 482 250 138 Average Temperature 63 | 83 . 6 . . 5 142 43 26 78 3 120 . 80 106 97 97 160 . 27 . . . . . . . . 180 48 83 Received Heat Transfer 1855 | . . 270 . . 141 . 36 . 78 . . . . 391 567 . . . 66 . 36 36 . . 75 21 39 27 36 36 Effects 6 | . . . . . . . . . . . . . . 2 . . . . . . . . . . . . . 3 1 . Shutdowns 2 | . . . . . . . . . . . . . . 1 . . . . . . . . . . . . . 1 . . Energy Bleed 1 | . . . . . . . . . . . . . . 1 . . . . . . . . . . . . . . . . Interference 1 | . . . . . . . . . . . . . . . . . . . . . . . . . . . . . 1 . Matter Decay 1 | . . . . . . . . . . . . . . . . . . . . . . . . . . . . 1 . . Damage (minor) 1 | . . . . . . . . . . . . . . . . . . . . . . . . . . . . 1 . . Siege Activations . | . . . . . . . . . . . . . . . . . . . . . . . . . . . . . . . Martial Activations . | . . . . . . . . . . . . . . . . . . . . . . . . . . . . . . . Shielding Activations . | . . . . . . . . . . . . . . . . . . . . . . . . . . . . . . . Robots Disrupted . | . . . . . . . . . . . . . . . . . . . . . . . . . . . . . . . Combat Hostiles . | . . . . . . . . . . . . . . . . . . . . . . . . . . . . . . . Robots Corrupted 6 | . . 3 . . . . . . . . . . . 3 . . . . . . . . . . . . . . . . Combat Hostiles 6 | . . 3 . . . . . . . . . . . 3 . . . . . . . . . . . . . . . . Parts Fried 25 | . . 17 . . . . . 1 . . . . 2 5 . . . . . . . . . . . . . . . . Impact Corruptions 1 | . . . . . . . . . . . . . . . . . . . . . . . . . . . . . 1 . Robots Melted 1 | . . . . . . . . . . . . . . 1 . . . . . . . . . . . . . . . . Combat Hostiles 1 | . . . . . . . . . . . . . . 1 . . . . . . . . . . . . . . . . Parts Melted 3 | . . . . . . . . . . . . . . 1 . . . . 2 . . . . . . . . . . . Heat Transferred 2066 | 74 . 250 . . 225 . . . . . . . . 600 333 . . . 250 . . . . . . . . 222 . 112 Parts Sabotaged . | . . . . . . . . . . . . . . . . . . . . . . . . . . . . . . . Parts Stolen . | . . . . . . . . . . . . . . . . . . . . . . . . . . . . . . . Parts Stripped . | . . . . . . . . . . . . . . . . . . . . . . . . . . . . . . . Power Chain Reactions 7 | 1 . 3 . . . . . 1 . . . . . 1 . . . . . . 1 . . . . . . . . . Alert | -11 -10 -10 -8 -8 -6 -6 -6 -6 -6 -6 -6 -6 -5 -5 -5 -5 -5 -5 -4 -4 -4 -4 -4 -4 -3 -3 -3 -2 -2 -2 ------- Run | Yrd Mat Sub Rec Scr Fac Was Fac Gar Fac Low Low Dat Pro Fac Gar Fac Upp Upp Fac Was Fac Upp Upp Zhi Pro Res Tes Res Qua Frg Maximum Alert Level 4 | . . . 1 . . . 1 3 2 . . . . 3 4 2 . . . . 3 . . . . 1 1 2 3 2 Low Security (%) 45 | 100 100 . 82 . 100 100 96 15 . . . . . 47 . . . . 100 100 8 . . . . 99 78 37 . . Level 1 17 | . . . 17 . . . 3 33 65 . . . . 24 . 39 . . . . 18 . . . . . 21 18 7 38 Level 2 26 | . . . . . . . . 47 34 . . . . 14 24 60 . . . . 34 . . . . . . 43 69 61 Level 3 9 | . . . . . . . . 2 . . . . . 13 55 . . . . . 38 . . . . . . . 23 . Level 4 1 | . . . . . . . . . . . . . . . 19 . . . . . . . . . . . . . . . Level 5 . | . . . . . . . . . . . . . . . . . . . . . . . . . . . . . . . High Security . | . . . . . . . . . . . . . . . . . . . . . . . . . . . . . . . Max Security . | . . . . . . . . . . . . . . . . . . . . . . . . . . . . . . . Peak Influence 1197 | 5 . . 259 . 119 48 233 733 458 . . . . 808 1197 627 . . 123 32 874 . . . . 263 251 578 752 471 Initial 627 | . . . 259 . . 18 33 62 384 . . . . 75 564 627 . . 93 . . . . . . . 147 141 318 416 Average 315 | 1 . . 80 . 30 28 114 410 375 . . . . 272 895 436 . . 35 5 557 . . . . 32 159 329 639 402 Influence Increases 11431 | 10 . 600 195 . 607 30 671 671 700 45 . . 170 1477 803 342 . . 213 68 1450 180 . 10 105 336 224 965 1076 483 Destroy 0b10 Robot/C 2560 | . . 140 . . 40 . . 160 . . . . 100 480 440 20 . . . . 420 20 . . 100 . 20 400 120 100 Destroy 0b10 Robot/NC 480 | 10 . . . . 60 . 25 15 50 . . . . 135 . 10 . . 15 . 45 . . 10 5 25 5 35 20 15 Destroy Leader 454 | . . 10 . . 34 . 6 20 8 . . . 10 110 40 2 . . 2 . 86 10 . . . 4 . 72 30 10 Allied During Kill 401 | . . . . . . . . . . . . . . . 18 7 . . . . 319 . . . . . 5 32 8 12 Trap Triggered on 0b10 70 | . . . . . 30 . . . . . . . . . . . . . . . . . . . . . . . 40 . Successful Hack 758 | . . . 41 . 114 . 97 12 156 . . . . 63 12 51 . . 61 . 46 . . . . 21 . 15 45 24 Select Force Hacks 310 | . . . 150 . . . . . 20 . . . . . . . . . . . 50 . . . . . . . 90 . Disable Machine 525 | . . . . . 15 . . 15 30 . . . . 90 . 15 . . 30 . 30 . . . . 15 15 15 255 . Anti-Garrison Action 500 | . . . . . . . 200 200 . . . . . . 100 . . . . . . . . . . . . . . . Destroy Structure 1113 | . . . 4 . 59 . 58 54 46 . . . . 104 118 12 . . 60 68 214 . . . . 16 14 126 78 82 Partial Spotted 870 | . . . . . 135 30 90 60 165 . . . . . . 30 . . 45 . 120 . . . . . 15 15 105 60 Lose Combat Pursuer 3390 | . . 450 . . 120 . 195 135 225 45 . . 60 495 75 195 . . . . 120 150 . . . 255 150 255 285 180 Influence Decreases 11050 | 10 . 60 735 . 555 34 630 27 1073 224 76 105 50 791 412 1214 141 36 361 68 586 441 176 437 105 73 236 650 902 842 Entered New Map 3712 | . . . 281 . . 34 15 27 349 134 36 105 . 45 242 570 121 36 55 . . 321 116 427 . . 116 110 248 324 Time Decay 5225 | 10 . 60 454 . 439 . 375 . 494 90 40 . 50 523 . 294 20 . 280 50 276 90 60 10 95 73 70 380 624 368 Search Patrol Dispatched 300 | . . . . . . . . . 200 . . . . . . 100 . . . . . . . . . . . . . . Lost Part 839 | . . . . . . . 10 . 20 . . . . 223 130 40 . . 6 . 40 30 . . 10 . 30 160 10 130 Lost Ally 488 | . . . . . . . 10 . 10 . . . . . 40 60 . . 20 18 270 . . . . . 20 . 20 20 Purge Threat 486 | . . . . . 116 . 220 . . . . . . . . 150 . . . . . . . . . . . . . . Squads Dispatched 116 | . . . . . 15 . 12 . 16 . . . . 18 . 7 . . 13 . 11 . . . . 5 2 5 9 3 Investigation 75 | . . . . . 6 . 9 . 13 . . . . 12 . 3 . . 8 . 6 . . . . 3 2 3 8 2 Extermination 26 | . . . . . 7 . 2 . 3 . . . . 4 . 2 . . 2 . 1 . . . . 2 . 2 . 1 Reinforcement 13 | . . . . . 2 . 1 . . . . . . 1 . 2 . . 3 . 3 . . . . . . . 1 . Assault 1 | . . . . . . . . . . . . . . . . . . . . . 1 . . . . . . . . . Garrison 1 | . . . . . . . . . . . . . . 1 . . . . . . . . . . . . . . . . Intercept . | . . . . . . . . . . . . . . . . . . . . . . . . . . . . . . . Searches Triggered 3 | . . . . . . . . . 2 . . . . . . 1 . . . . . . . . . . . . . . Unchained Authorized 2 | . . . . . . . . . . . . . . . . . . . . . 1 . . . . 1 . . . . Data Miner Redirects 16 | . . . . . . . . . . . . . . 3 . 2 . . 2 . 3 . . . . 2 . . 4 . Construction Impeded 1 | . . . . . . . . . . . . . . . . . . . . . 1 . . . . . . . . . Haulers Reinforced 1 | . . . . . . . . . . . . . . . . . . . 1 . . . . . . . . . . . Active Scanning Responses . | . . . . . . . . . . . . . . . . . . . . . . . . . . . . . . . Cargo Convoy Interrupts . | . . . . . . . . . . . . . . . . . . . . . . . . . . . . . . . Stealth | -11 -10 -10 -8 -8 -6 -6 -6 -6 -6 -6 -6 -6 -5 -5 -5 -5 -5 -5 -4 -4 -4 -4 -4 -4 -3 -3 -3 -2 -2 -2 --------- Run | Yrd Mat Sub Rec Scr Fac Was Fac Gar Fac Low Low Dat Pro Fac Gar Fac Upp Upp Fac Was Fac Upp Upp Zhi Pro Res Tes Res Qua Frg Distress Signals 28 | . . . . . . . 2 . 3 . . . . 3 . 1 . . 3 . 4 . . . . 1 2 3 1 5 Communications Jammed . | . . . . . . . . . . . . . . . . . . . . . . . . . . . . . . . Distress Signals . | . . . . . . . . . . . . . . . . . . . . . . . . . . . . . . . Times Spotted 578 | . 1 48 . . 36 2 25 10 47 4 1 . 8 83 26 22 . 1 69 5 35 12 1 . 5 10 17 42 27 41 Peak Tracking Total 14 | . 2 5 . . 7 2 11 4 9 3 1 . 4 13 8 5 . 2 14 2 12 9 2 . 3 11 11 14 6 11 Tactical Retreats 135 | . . 9 . . 11 . 8 4 15 2 . . 1 21 5 6 . . 16 . 3 4 . . . 3 2 6 12 7 ECM-based Alert Blocks 115 | . . . . . 16 . 9 . 21 . . . . 6 . . . . 63 . . . . . . . . . . . Traps | -11 -10 -10 -8 -8 -6 -6 -6 -6 -6 -6 -6 -6 -5 -5 -5 -5 -5 -5 -4 -4 -4 -4 -4 -4 -3 -3 -3 -2 -2 -2 ------- Run | Yrd Mat Sub Rec Scr Fac Was Fac Gar Fac Low Low Dat Pro Fac Gar Fac Upp Upp Fac Was Fac Upp Upp Zhi Pro Res Tes Res Qua Frg Traps Triggered 43 | . . 1 . . 1 . 1 11 6 . . . . 4 5 3 1 . 2 . 1 . . . . . . 1 3 3 Indirectly 2 | . . . . . . . . 2 . . . . . . . . . . . . . . . . . . . . . . Trap Hack Attempts 64 | . . . . . 64 . . . . . . . . . . . . . . . . . . . . . . . . . Triggered . | . . . . . . . . . . . . . . . . . . . . . . . . . . . . . . . Disarmed . | . . . . . . . . . . . . . . . . . . . . . . . . . . . . . . . Reprogrammed 7 | . . . . . 7 . . . . . . . . . . . . . . . . . . . . . . . . . Reused 7 | . . . . . 3 . . . . . . . . . . . . . . . . . . . . . . . 4 . Traps Extracted 4 | . . . . . 4 . . . . . . . . . . . . . . . . . . . . . . . . . Installed 4 | . . . . . . . . . . . . . . . . . . . . . . . . . . . . . 4 . Triggered 7 | . . . . . 3 . . . . . . . . . . . . . . . . . . . . . . . 4 . Most Traps Carried 4 | . . . . . 4 4 4 4 4 4 4 4 4 4 4 4 4 4 4 4 4 4 4 4 4 4 4 4 4 . Machines | -11 -10 -10 -8 -8 -6 -6 -6 -6 -6 -6 -6 -6 -5 -5 -5 -5 -5 -5 -4 -4 -4 -4 -4 -4 -3 -3 -3 -2 -2 -2 ---------- Run | Yrd Mat Sub Rec Scr Fac Was Fac Gar Fac Low Low Dat Pro Fac Gar Fac Upp Upp Fac Was Fac Upp Upp Zhi Pro Res Tes Res Qua Frg Machines Disabled 49 | . . 2 . . 1 . . 5 2 . . . . 6 3 1 . . 2 . 2 . . 3 . 1 1 1 18 1 Max in Single Turn 2 | . . 1 . . 1 . . 2 1 . . . . 1 1 1 . . 1 . . . . 1 . 1 1 1 1 1 Garrison Access 14 | . . . . . 2 . 2 . 2 . . . . 1 . . . . 3 . 1 . . . . . . 1 1 1 Garrison Relay 4 | . . . . . . . . 2 . . . . . . 2 . . . . . . . . . . . . . . . Phase Generator 1 | . . . . . . . . 1 . . . . . . . . . . . . . . . . . . . . . . Machines Repaired . | . . . . . . . . . . . . . . . . . . . . . . . . . . . . . . . Machines Dismantled . | . . . . . . . . . . . . . . . . . . . . . . . . . . . . . . . Machines Sabotaged . | . . . . . . . . . . . . . . . . . . . . . . . . . . . . . . . Overloaded Fab Kills 4 | . . . . . . . . . . . . . . . . . . . . . 4 . . . . . . . . . Hacking | -11 -10 -10 -8 -8 -6 -6 -6 -6 -6 -6 -6 -6 -5 -5 -5 -5 -5 -5 -4 -4 -4 -4 -4 -4 -3 -3 -3 -2 -2 -2 --------- Run | Yrd Mat Sub Rec Scr Fac Was Fac Gar Fac Low Low Dat Pro Fac Gar Fac Upp Upp Fac Was Fac Upp Upp Zhi Pro Res Tes Res Qua Frg Machines Accessed 222 | . . 4 11 4 29 . 20 2 35 . 2 4 . 21 2 9 . . 20 . 11 1 1 4 . 5 3 6 18 10 Terminals 99 | . . . 6 . 16 . 7 2 17 . . . . 6 2 6 . . 9 . 4 1 . . . 2 2 3 12 4 Fabricators 16 | . . . . . 1 . 2 . 3 . . . . 4 . . . . 1 . 1 . . . . . 1 . . 3 Repair Stations 17 | . . . . . 2 . 2 . 3 . . . . 3 . 1 . . . . 2 . . . . 1 . 1 2 . Recycling Units 40 | . . . 5 . 5 . 4 . 8 . . . . 4 . 2 . . 5 . 3 . . . . 1 . 1 . 2 Scanalyzers 14 | . . . . . 2 . 2 . 2 . . . . 2 . . . . 2 . . . . . . 1 . . 3 . Garrison Access 17 | . . . . . 3 . 3 . 2 . . . . 2 . . . . 3 . 1 . . . . . . 1 1 1 Total Hacks 604 | . . 8 36 23 100 . 57 4 66 . 6 29 . 59 3 30 . . 41 . 26 3 1 17 . 10 7 12 49 17 Successful 398 | . . 8 23 23 51 . 30 1 38 . 6 29 . 41 1 18 . . 26 . 19 3 1 17 . 4 2 4 43 10 Failed 203 | . . . 13 . 48 . 27 3 28 . . . . 17 2 12 . . 15 . 7 . . . . 6 5 8 5 7 Catastrophic 31 | . . . . . 12 . 3 . 6 . . . . 1 . 2 . . 3 . 1 . . . . 1 1 . 1 . Database Lockouts 3 | . . . . . 1 . . . . . . . . 1 . . . . . . . . . . . . . . 1 . Manual 298 | . . . 27 . 54 . 24 2 45 . . . . 28 . 26 . . 18 . 17 . . . . 8 6 9 27 7 Terminals 305 | . . . 30 . 68 . 31 4 37 . . . . 18 3 23 . . 23 . 12 3 . . . 4 6 6 29 8 Fabricators 41 | . . . . . 1 . 7 . 10 . . . . 15 . . . . 2 . 1 . . . . . 1 . . 4 Repair Stations 46 | . . . . . 9 . 4 . 6 . . . . 10 . 1 . . . . 8 . . . . 3 . 3 2 . Recycling Units 53 | . . . 6 . 6 . 6 . 9 . . . . 4 . 6 . . 8 . 3 . . . . 1 . 2 . 2 Scanalyzers 53 | . . . . . 11 . 6 . 2 . . . . 10 . . . . 5 . . . . . . 2 . . 17 . Garrison Access 22 | . . . . . 5 . 3 . 2 . . . . 2 . . . . 3 . 2 . . . . . . 1 1 3 Terminal Hacks 150 | . . 8 11 23 13 . 8 . 5 . 6 29 . 4 1 5 . . 4 . 3 3 1 17 . . . . 9 . Record 47 | . . 5 . 17 . . . . . . 5 11 . . . . . . . . . 3 . 5 . . . . 1 . Part Schematic 26 | . . . 6 . 1 . 2 . . . . 11 . . . . . . 1 . . . . 4 . . . . 1 . Robot Schematic 4 | . . . . . . . . . . . . 4 . . . . . . . . . . . . . . . . . . Robot Analysis 11 | . . . 1 5 . . . . . . . . . . . . . . . . . . . 4 . . . . 1 . Prototype ID Bank 22 | . . . 3 . 3 . 1 . 3 . . 3 . 1 . 1 . . 1 . . . . 4 . . . . 2 . Open Door 4 | . . 1 . . . . . . . . 1 . . . . . . . . . . . 1 . . . . . 1 . Level Access Points 1 | . . . . . . . . . . . . . . . . 1 . . . . . . . . . . . . . . Branch Access Points 2 | . . . . . . . . . 1 . . . . . . . . . . . 1 . . . . . . . . . Terminal Index 7 | . . . . . 1 . 1 . . . . . . 1 . 1 . . . . 1 . . . . . . . 2 . Recycling Unit Index 1 | . . . . . . . . . . . . . . . . 1 . . . . . . . . . . . . . . Alert Level 2 | . . . 1 . 1 . . . . . . . . . . . . . . . . . . . . . . . . . Unreport Threat 3 | . . . . . 1 . 2 . . . . . . . . . . . . . . . . . . . . . . . Locate Traps 2 | . . . . . . . . . 1 . . . . . . . . . 1 . . . . . . . . . . . Recall Extermination 1 | . . . . . 1 . . . . . . . . . . . . . . . . . . . . . . . . . Registered Components 1 | . . . . . 1 . . . . . . . . . . . . . . . . . . . . . . . . . Zone Layout 12 | . . . . . 4 . 2 . . . . . . 2 . 1 . . 1 . 1 . . . . . . . 1 . Garrison Registry 1 | . . . . . . . . . . . . . . . 1 . . . . . . . . . . . . . . . Proto ID Catalog 2 | . . 1 . 1 . . . . . . . . . . . . . . . . . . . . . . . . . . Release Object 1 | . . 1 . . . . . . . . . . . . . . . . . . . . . . . . . . . . Fabricator Hacks 22 | . . . . . 1 . 2 . 4 . . . . 9 . . . . 1 . . . . . . . 1 . . 4 Network Status 4 | . . . . . 1 . 1 . 1 . . . . . . . . . . . . . . . . . 1 . . . Load Schematic 13 | . . . . . . . 1 . 2 . . . . 6 . . . . 1 . . . . . . . . . . 3 Build 5 | . . . . . . . . . 1 . . . . 3 . . . . . . . . . . . . . . . 1 Repair Station Hacks 16 | . . . . . 4 . 1 . 2 . . . . 3 . . . . . . 4 . . . . . . . 2 . Scan Component 6 | . . . . . 2 . . . 1 . . . . 1 . . . . . . 2 . . . . . . . . . Repair 6 | . . . . . 2 . . . 1 . . . . 1 . . . . . . 2 . . . . . . . . . Refit 4 | . . . . . . . 1 . . . . . . 1 . . . . . . . . . . . . . . 2 . Recycling Unit Hacks 3 | . . . . . . . . . . . . . . . . 2 . . 1 . . . . . . . . . . . Process 2 | . . . . . . . . . . . . . . . . 1 . . 1 . . . . . . . . . . . Retrieve Matter 1 | . . . . . . . . . . . . . . . . 1 . . . . . . . . . . . . . . Scanalyzer 35 | . . . . . 7 . 3 . 1 . . . . 8 . . . . 3 . . . . . . . . . 13 . Insert Component 12 | . . . . . 3 . 1 . . . . . . 3 . . . . . . . . . . . . . . 5 . Analyze 15 | . . . . . 3 . 1 . . . . . . 4 . . . . . . . . . . . . . . 7 . Retrieve Study 8 | . . . . . 1 . 1 . 1 . . . . 1 . . . . 3 . . . . . . . . . 1 . Garrison Access Hacks 16 | . . . . . 2 . 2 . 2 . . . . 2 . . . . 3 . 2 . . . . . . 1 1 1 Unlock Access 2 | . . . . . . . 1 . . . . . . 1 . . . . . . . . . . . . . . . . Seal Access 13 | . . . . . 2 . 1 . 2 . . . . 1 . . . . 3 . 1 . . . . . . 1 1 1 Coupler Status 1 | . . . . . . . . . . . . . . . . . . . . . 1 . . . . . . . . . Unauthorized Hacks 156 | . . . 12 . 24 . 14 1 24 . . . . 15 . 11 . . 14 . 10 . . . . 4 1 3 18 5 Terminals 96 | . . . 7 . 19 . 8 1 10 . . . . 7 . 9 . . 8 . 5 . . . . 2 1 1 15 3 Track 10 | . . . . . 5 . . . . . . . . 2 . . . . 1 . 1 . . . . 1 . . . . Assimilate 4 | . . . . . . . 1 . 1 . . . . . . . . . 1 . . . . . . . . . . 1 Botnet 24 | . . . 2 . 3 . 2 1 3 . . . . 1 . 4 . . 1 . . . . . . . . . 7 . Disrupt 1 | . . . . . . . . . . . . . . . . . . . . . . . . . . . 1 . . . Operators 1 | . . . . . 1 . . . . . . . . . . . . . . . . . . . . . . . . . Skim 56 | . . . 5 . 10 . 5 . 6 . . . . 4 . 5 . . 5 . 4 . . . . 1 . 1 8 2 Fabricators 9 | . . . . . . . 1 . 3 . . . . 3 . . . . 1 . 1 . . . . . . . . . Prioritize 2 | . . . . . . . . . 1 . . . . 1 . . . . . . . . . . . . . . . . Overload 1 | . . . . . . . . . . . . . . . . . . . . . 1 . . . . . . . . . Download 1 | . . . . . . . . . 1 . . . . . . . . . . . . . . . . . . . . . Recompile 5 | . . . . . . . 1 . 1 . . . . 2 . . . . 1 . . . . . . . . . . . Repair Stations 8 | . . . . . . . . . 3 . . . . 1 . 1 . . . . 1 . . . . 1 . 1 . . Mechanics 1 | . . . . . . . . . . . . . . . . . . . . . 1 . . . . . . . . . Patch 7 | . . . . . . . . . 3 . . . . 1 . 1 . . . . . . . . . 1 . 1 . . Recycling Units 39 | . . . 5 . 5 . 4 . 8 . . . . 4 . 1 . . 5 . 3 . . . . 1 . 1 . 2 Tunnel 5 | . . . 5 . . . . . . . . . . . . . . . . . . . . . . . . . . . Fedlink 32 | . . . . . 5 . 4 . 8 . . . . 4 . 1 . . 5 . 3 . . . . 1 . . . 1 Scraphulk 2 | . . . . . . . . . . . . . . . . . . . . . . . . . . . . 1 . 1 Scanalyzers 3 | . . . . . . . . . . . . . . . . . . . . . . . . . . . . . 3 . Extract 3 | . . . . . . . . . . . . . . . . . . . . . . . . . . . . . 3 . Garrison Access 1 | . . . . . . . 1 . . . . . . . . . . . . . . . . . . . . . . . Jam 1 | . . . . . . . 1 . . . . . . . . . . . . . . . . . . . . . . . Data Cores Recovered 3 | . . . . . 1 . . . . . . . . . . . . . . . . . . . . . . . . 2 Used 1 | . . . . . . . . . . . . . . . . . . . . . . . . . . . . . . 1 Hacking Detections 128 | . . . 6 . 18 . 15 2 22 . . . . 12 2 5 . . 11 . 6 1 . . . 4 3 4 12 5 Full Trace Events 18 | . . . . . 1 . 3 1 . . . . . 3 . 1 . . 2 . 1 1 . . . 1 2 . 2 . Feedback Events 5 | . . . . . . . 3 . . . . . . . . . . . . . . . . . . 1 . . 1 . Corruption 5 | . . . . . . . 3 . . . . . . . . . . . . . . . . . . 1 . . 1 . Feedback Blocked . | . . . . . . . . . . . . . . . . . . . . . . . . . . . . . . . Robot Schematics Acquired 7 | . . . . . . . . . . . . 4 . . . . . . . . . . . . . . . . 2 1 Robots Built . | . . . . . . . . . . . . . . . . . . . . . . . . . . . . . . . Authchips . | . . . . . . . . . . . . . . . . . . . . . . . . . . . . . . . Time . | . . . . . . . . . . . . . . . . . . . . . . . . . . . . . . . Total Robot Build Rating . | . . . . . . . . . . . . . . . . . . . . . . . . . . . . . . . Part Schematics Acquired 91 | . . . 6 . 22 . 5 . 1 . . 11 . 2 . . . . 1 . . . . 4 . . . . 37 2 Parts Built 9 | . . . . . . . . . 1 . . . . 6 . . . . . . . . . . . . . . . 2 Authchips 5 | . . . . . . . . . 1 . . . . 3 . . . . . . . . . . . . . . . 1 Time 222 | . . . . . . . . . 42 . . . . 138 . . . . . . . . . . . . . . . 42 Total Part Build Rating 62 | . . . . . . . . . 4 . . . . 42 . . . . . . . . . . . . . . . 16 Part Studies Acquired 8 | . . . . . 1 . 1 . 1 . . . . 1 . . . . 3 . . . . . . . . . 1 . Parts Repaired 6 | . . . . . 2 . . . 1 . . . . 1 . . . . . . 2 . . . . . . . . . Time 243 | . . . . . 38 . . . 80 . . . . 25 . . . . . . 100 . . . . . . . . . Parts Recycled . | . . . . . . . . . . . . . . . . . . . . . . . . . . . . . . . Recycled Matter 70 | . . . . . . . . . . . . . . . . 27 . . 43 . . . . . . . . . . . Retrieved Matter 27 | . . . . . . . . . . . . . . . . 27 . . . . . . . . . . . . . . Retrieved Components . | . . . . . . . . . . . . . . . . . . . . . . . . . . . . . . . Parts Scanalyzed 11 | . . . . . 3 . 1 . . . . . . 3 . . . . . . . . . . . . . . 4 . Part Schematics Acquired 10 | . . . . . 3 . 1 . . . . . . 2 . . . . . . . . . . . . . . 4 . Parts Damaged 4 | . . . . . 2 . 1 . . . . . . . . . . . . . . . . . . . . . 1 . Bothacking | -11 -10 -10 -8 -8 -6 -6 -6 -6 -6 -6 -6 -6 -5 -5 -5 -5 -5 -5 -4 -4 -4 -4 -4 -4 -3 -3 -3 -2 -2 -2 ------------ Run | Yrd Mat Sub Rec Scr Fac Was Fac Gar Fac Low Low Dat Pro Fac Gar Fac Upp Upp Fac Was Fac Upp Upp Zhi Pro Res Tes Res Qua Frg Used RIF Installer 2 | . . . . . . . . 1 . . . . . . 1 . . . . . . . . . . . . . . . Hotswap 1 | . . . . . . . . . . . . . . . 1 . . . . . . . . . . . . . . . Robots Hacked 15 | . . . . . 2 . 1 . . . . 1 . . . 6 . . 5 . . . . . . . . . . . Non-combat 10 | . . . . . 2 . 1 . . . . . . . . 3 . . 4 . . . . . . . . . . . Combat 5 | . . . . . . . . . . . . 1 . . . 3 . . 1 . . . . . . . . . . . Robot Hacks Applied 16 | . . . . . 2 . 1 . . . . 1 . . . 7 . . 5 . . . . . . . . . . . parse_system 1 | . . . . . . . . . . . . 1 . . . . . . . . . . . . . . . . . . find_chute 4 | . . . . . 2 . . . . . . . . . . . . . 2 . . . . . . . . . . . deconstruct_machine 1 | . . . . . . . . . . . . . . . . 1 . . . . . . . . . . . . . . drop_inventory 2 | . . . . . . . . . . . . . . . . . . . 2 . . . . . . . . . . . check_alert 1 | . . . . . . . 1 . . . . . . . . . . . . . . . . . . . . . . . purge_threat 1 | . . . . . . . . . . . . . . . . 1 . . . . . . . . . . . . . . formatsys_low 2 | . . . . . . . . . . . . . . . . 2 . . . . . . . . . . . . . . formatsys_high 4 | . . . . . . . . . . . . . . . . 3 . . 1 . . . . . . . . . . . Relay Couplers Released 17 | . . . . . . . . 9 . . . . . . 8 . . . . . . . . . . . . . . . Machine Destruction 17 | . . . . . . . . 9 . . . . . . 8 . . . . . . . . . . . . . . . Attached 4 | . . . . . . . . . . . . . . . 1 2 . . 1 . . . . . . . . . . . Fabnet Peak Effective % . | . . . . . . . . . . . . . . . . . . . . . . . . . . . . . . . Robots Rewired 4 | . . . . . . . . . . . . . . . 3 . . . . . . . . . . . 1 . . . Allies Hacked . | . . . . . . . . . . . . . . . . . . . . . . . . . . . . . . . Hacks Repelled . | . . . . . . . . . . . . . . . . . . . . . . . . . . . . . . . Allies | -11 -10 -10 -8 -8 -6 -6 -6 -6 -6 -6 -6 -6 -5 -5 -5 -5 -5 -5 -4 -4 -4 -4 -4 -4 -3 -3 -3 -2 -2 -2 -------- Run | Yrd Mat Sub Rec Scr Fac Was Fac Gar Fac Low Low Dat Pro Fac Gar Fac Upp Upp Fac Was Fac Upp Upp Zhi Pro Res Tes Res Qua Frg Total Allies 35 | . . . . . . . 1 . 1 . . . . . 3 5 . 1 2 19 . . . . . . 1 1 . 1 Largest Group 19 | . . . . . . . 1 . 1 . . . . . 3 5 . . 1 19 16 . . . . . 1 1 1 1 Highest-Rated Group 702 | . . . . . . . 10 . 10 . . . . . 87 131 . . 47 702 627 . . . . . 164 139 139 139 Highest-Rated Ally 164 | . . . . . . . 10 . 10 . . . . . 29 49 . . 47 50 50 . . . . . 164 139 139 139 Total Orders 4 | . . . . . . . . . . . . . . . . 1 . . . . . . . . . . . 2 1 . STAY 2 | . . . . . . . . . . . . . . . . . . . . . . . . . . . . 1 1 . FOLLOW 1 | . . . . . . . . . . . . . . . . . . . . . . . . . . . . 1 . . AID 1 | . . . . . . . . . . . . . . . . 1 . . . . . . . . . . . . . . Ally Attacks 281 | . . . . . . . . . . . . . . . 20 9 . . 3 85 102 . . . . . 5 19 12 26 Total Damage 10141 | . . . . . . . . . . . . . . . 298 184 . . 101 2445 3327 . . . . . 456 1265 670 1395 Kills 57 | . . . . . . . . . . . . . . . 3 2 . . . 7 22 . . . . . 1 12 5 5 Allies Corrupted . | . . . . . . . . . . . . . . . . . . . . . . . . . . . . . . . Allies Melted 6 | . . . . . . . . . . . . . . . 1 1 . . . . . . . . . . 1 . . 3 Intel | -11 -10 -10 -8 -8 -6 -6 -6 -6 -6 -6 -6 -6 -5 -5 -5 -5 -5 -5 -4 -4 -4 -4 -4 -4 -3 -3 -3 -2 -2 -2 ------- Run | Yrd Mat Sub Rec Scr Fac Was Fac Gar Fac Low Low Dat Pro Fac Gar Fac Upp Upp Fac Was Fac Upp Upp Zhi Pro Res Tes Res Qua Frg Active Infowar (turns) 13275 | 18 145 86 . 328 1947 12 1035 362 1316 196 89 24 136 1217 304 382 . . 765 202 616 . 1 . . 189 154 766 2133 852 Optics 4075 | . . . . . . . . . . . . . . 361 . . . . . . . . . . . . . 729 2133 852 Sensors 10874 | . . . . . 1845 12 1035 362 1312 196 89 24 136 734 304 366 . . 636 202 616 . . . . 189 143 . 1892 781 Terrain 218 | . . . . . . . . . . . . . . 70 . . . . 71 . 77 . . . . . . . . . Structural 1746 | . . . . 19 . . 84 106 475 178 89 24 95 402 . . . . . . . . . . . 84 153 37 . . Seismic 249 | 18 145 86 . . . . . . . . . . . . . . . . . . . . . . . . . . . . Machine Analysis 580 | . . . . . . . . . . . . . . 580 . . . . . . . . . . . . . . . . Triangulation 9 | . . . . . . . . . . . . . . . . . . . . . . . . . . 9 . . . . Jamming 2 | . . . . . . . . . . . . . . 2 . . . . . . . . . . . . . . . . ECM 2539 | . . . . 309 608 . 236 . 498 11 . . . 358 . 21 . . 497 . . . 1 . . . . . . . Robot Analysis Total 11 | . . . 1 5 . . . . . . . . . . . . . . . . . . . 4 . . . . 1 . Derelict Logs Recovered 12 | . . 1 . 3 . . . . . 1 . . 2 . . . 1 . . . . 2 2 . . . . . . . Drone Launches . | . . . . . . . . . . . . . . . . . . . . . . . . . . . . . . . Drone Recoveries . | . . . . . . . . . . . . . . . . . . . . . . . . . . . . . . . Exploration | -11 -10 -10 -8 -8 -6 -6 -6 -6 -6 -6 -6 -6 -5 -5 -5 -5 -5 -5 -4 -4 -4 -4 -4 -4 -3 -3 -3 -2 -2 -2 ------------- Run | Yrd Mat Sub Rec Scr Fac Was Fac Gar Fac Low Low Dat Pro Fac Gar Fac Upp Upp Fac Was Fac Upp Upp Zhi Pro Res Tes Res Qua Frg Turns Passed 22833 | 73 145 3270 1396 1979 1947 12 1035 382 1316 196 89 24 136 2090 884 642 44 13 782 202 638 183 133 507 387 293 154 896 2133 852 Spaces Moved 30082 | 50 85 1521 680 1329 3514 61 2024 713 2926 484 350 104 295 2533 616 1355 124 37 1716 294 1191 540 427 431 245 619 311 987 3370 1150 Core 255 | 16 . . . 113 . . . . . . . . . . . . . . . . . . . . . . . 61 1 64 Treads 390 | . 75 315 . . . . . . . . . . . . . . . . . . . . . . . . . . . . Legs 4539 | . . 1206 680 1216 130 . . . . . . . . . 339 100 . . . . . . . 321 245 25 . 266 11 . Wheels 44 | 34 10 . . . . . . . . . . . . . . . . . . . . . . . . . . . . . Hover 3113 | . . . . . . . . . . . . . . 2284 277 . . . 534 . . . . 18 . . . . . . Flight 21741 | . . . . . 3384 61 2024 713 2926 484 350 104 295 249 . 1255 124 37 1182 294 1191 540 427 92 . 594 311 660 3358 1086 Fastest Speed 5 | 50 80 160 200 50 5 5 5 5 5 12 22 22 22 22 44 27 27 27 27 31 29 29 29 29 120 27 28 29 28 24 Average Speed 52 | 84 152 191 200 145 28 19 22 23 22 21 22 22 22 51 94 34 27 27 30 40 31 29 29 103 120 31 28 62 29 36 Slowest Speed 550 | 100 160 200 200 200 200 23 23 100 100 22 22 22 91 365 260 190 29 27 117 117 32 89 29 180 120 120 35 125 550 120 Overloaded Moves 124 | . . . . . 4 12 20 38 44 1 . . . 1 . . . . . . . . . . . . . . . 4 Propulsion Burnouts . | . . . . . . . . . . . . . . . . . . . . . . . . . . . . . . . Robots Hopped 132 | . . . . . 18 . 7 1 14 . . . . . . 15 . . 29 1 18 1 . . . 5 4 5 4 10 Potential Cave-ins 8 | . . . . . . . 2 . . . . . . . . . . . . . . . . . . . . . . 6 Cave-ins Triggered . | . . . . . . . . . . . . . . . . . . . . . . . . . . . . . . . Teleports 2 | . . . . . . . . . . . . . . . . . . . . . . . . . . . . 1 . 1 Exploration Rate (%) 57 | 3 19 82 89 86 80 65 55 79 89 71 50 75 50 41 69 37 27 9 49 91 29 80 82 94 44 18 35 27 99 46 Regions Visited 30 Branch Regions 16 Pre-discovered Areas 32 | . . 2 6 4 6 . 3 . . 1 1 1 1 . . . . . 2 . . . 1 3 . . . . 1 . Known Exits Taken 21 | . . . 1 1 . . 1 . 1 1 1 1 1 1 . 1 1 1 . . 1 1 1 1 1 1 1 1 1 . Unknown Exits Taken 3 | 1 1 1 . . . . . . . . . . . . . . . . . . . . . . . . . . . . Scrap Searched 28 | . . 9 . 6 . . . . . 1 2 . 2 . . . 1 1 . . . 3 2 . 1 . . . . . Spaces Dug 348 | . . . 4 . 59 . 75 1 46 3 2 . 3 15 10 4 . . 32 . 18 2 . . 2 8 3 16 21 24 Terrain Destroyed 575 | 6 . 57 4 . 59 . 75 72 46 3 2 . 3 60 42 6 . . 35 . 18 2 . . 2 8 3 26 21 25 Melee 294 | . . . 4 . 59 . 41 1 46 3 2 . 3 15 10 4 . . 18 . 18 2 . . 2 8 3 15 21 19 Projectile 42 | . . . . . . . . . . . . . . 2 4 2 . . 17 . . . . . . . . 11 . 6 AOE 239 | 6 . 57 . . . . 34 71 . . . . . 43 28 . . . . . . . . . . . . . . . Terrain Rammed . | . . . . . . . . . . . . . . . . . . . . . . . . . . . . . . . Walls Destroyed . | . . . . . . . . . . . . . . . . . . . . . . . . . . . . . . . Machines Disabled . | . . . . . . . . . . . . . . . . . . . . . . . . . . . . . . . Actions | -11 -10 -10 -8 -8 -6 -6 -6 -6 -6 -6 -6 -6 -5 -5 -5 -5 -5 -5 -4 -4 -4 -4 -4 -4 -3 -3 -3 -2 -2 -2 --------- Run | Yrd Mat Sub Rec Scr Fac Was Fac Gar Fac Low Low Dat Pro Fac Gar Fac Upp Upp Fac Was Fac Upp Upp Zhi Pro Res Tes Res Qua Frg Total 35778 | 66 100 1750 706 1384 4278 60 2531 908 3468 569 359 104 356 3090 805 1510 134 39 1887 376 1385 558 433 473 305 684 360 1178 4413 1509 Wait 3476 | . . 92 9 5 488 . 410 115 434 73 8 . 39 202 21 97 7 3 72 71 143 7 1 10 39 24 3 84 793 226 Move 29808 | 49 84 1520 679 1328 3479 60 2009 710 2898 483 349 103 294 2533 615 1324 123 36 1663 291 1160 537 426 430 244 609 302 976 3361 1133 Hop 115 | . . . . . 17 . 7 1 13 . . . . . . 15 . . 24 1 12 1 . . . 4 4 5 4 7 Pick Up 167 | 4 4 11 2 31 15 . 2 7 6 1 . . 3 21 5 6 1 . 9 2 3 . 1 2 1 1 3 5 15 6 Fast Attach 308 | 7 3 3 1 3 12 . 5 4 5 4 . . 1 63 13 10 1 . 17 3 8 3 . 10 . 11 7 31 63 20 Attach 123 | . . 4 1 4 10 . 6 8 5 . . . 2 15 4 8 . . 13 4 1 3 . 3 . 2 2 8 6 14 Detach 81 | . . . 1 1 2 . 5 8 3 . . . 2 7 1 4 . . 7 1 1 4 . . . 1 2 5 12 14 Swap 204 | 1 4 11 2 1 31 . 19 13 14 1 . . . 27 5 1 . . 5 . 13 . 4 2 1 7 6 4 27 5 Drop 352 | . 5 15 1 11 26 . 13 11 7 4 . . 4 56 5 19 2 . 22 3 11 . 1 6 . 11 8 14 77 20 Fire 270 | 5 . 70 . . 15 . 2 8 . . . . 7 50 41 19 . . 25 . . . . . . . . 12 . 16 Melee 671 | . . 7 4 . 116 . 53 13 83 3 2 1 4 115 42 6 . . 29 . 33 3 . 10 20 14 5 34 51 23 Ram 2 | . . . . . . . . . . . . . . 1 1 . . . . . . . . . . . . . . . Kick 7 | . . . 6 . 1 . . . . . . . . . . . . . . . . . . . . . . . . . Crush . | . . . . . . . . . . . . . . . . . . . . . . . . . . . . . . . Escape Stasis 66 | . . . . . . . . 10 . . . . . . 31 . . . . . . . . . . . . . . 25 Rewire 41 | . . . . . . . . . . . . . . . 21 1 . . 1 . . . . . . . 18 . . . Trap 68 | . . . . . 64 . . . . . . . . . . . . . . . . . . . . . . . 4 . Miscellaneous 19 | . . 17 . . 2 . . . . . . . . . . . . . . . . . . . . . . . . . Route ------- -11/Scrapyard -10/Materials -10/Subcaves (discovered 3 exits: [*Mat x2] / *Rec) -8/Recycling (discovered 2 exits: *Fac / *Scr) -8/Scraptown (discovered 2 exits: *Fac x2) -6/Factory (discovered 6 exits: *Fac x4 / *Low x2) -6/Waste -6/Factory (discovered 4 exits: *Fac x2 / *Low / Gar) -6/Garrison (discovered 2 exits: *Fac x2) -6/Factory (discovered 6 exits: Fac x4 / *Low x2) -6/Lower Caves -6/Lower Caves (discovered 2 exits: Fac / *Dat) -6/Data Miner -5/Proximity Caves -5/Factory (discovered 5 exits: *Fac x2 / *Upp x2 / Gar) -5/Garrison (discovered 4 exits: *Fac x4) -5/Factory (discovered 5 exits: Fac x4 / *Upp) -5/Upper Caves -5/Upper Caves (discovered 2 exits: *Fac / War) -4/Factory (discovered 5 exits: *Res x3 / *Upp / *Ext) -4/Waste -4/Factory (discovered 6 exits: *Res / *Upp x2 / Ext x2 / Arm) -4/Upper Caves -4/Upper Caves (discovered 2 exits: *Res / *Zhi) -4/Zhirov -3/Proximity Caves -3/Research -3/Testing -2/Research (discovered 3 exits: *Acc / *Qua x2) -2/Quarantine (discovered 3 exits: *Acc / [*Sec] / *Frg) -2/Protoforge History --------- Turn | Location | Event 19 | -11/Scrapyard | Discovered new exit (range 16) 74 | -11/Scrapyard | Entered Materials 172 | -10/Materials | Discovered new exit (range 12) 219 | -10/Materials | Entered Subcaves 220 | -10/Subcaves | Approached by a straggling Scientist 328 | -10/Subcaves | Build established: Mutant 345 | -10/Subcaves | Shifting Twisted Machinery released Mak. Light Armor Plating 449 | -10/Subcaves | Visited Clippyterm 454 | -10/Subcaves | Learned location of Extension (-4) 454 | -10/Subcaves | Learned Factory fabricator intel 639 | -10/Subcaves | A Subdweller sparked back to life 875 | -10/Subcaves | Found Prototype Leg 875 | -10/Subcaves | Identified Cargo Legs 876 | -10/Subcaves | Attached Cargo Legs, gained temporary slots: Utility x2 1018 | -10/Subcaves | Discovered new exit (range 12) 1365 | -10/Subcaves | Found SUBCON Basin 1587 | -10/Subcaves | Shifting Twisted Machinery released Riot Gun 1590 | -10/Subcaves | A swath of the cavern ceiling suddenly collapsed 1624 | -10/Subcaves | Learned 2 Materials zone layouts 1653 | -10/Subcaves | A swath of the cavern ceiling suddenly collapsed 1790 | -10/Subcaves | Learned location of Zion (-7) 1790 | -10/Subcaves | Met a Zionite searching for "candidates" 1877 | -10/Subcaves | Build established: Subdweller-Mutant 2248 | -10/Subcaves | Discovered new exit (range 12) 2250 | -10/Subcaves | Build established: Mutant 2300 | -10/Subcaves | Core integrity fell below 50% 2367 | -10/Subcaves | Shifting Twisted Machinery released Sub. Beam Cannon 2703 | -10/Subcaves | Visited 4L-MR0's lab 2985 | -10/Subcaves | Discovered new exit (range 12) 3489 | -10/Subcaves | Entered Recycling 3991 | -8/Recycling | Scanned before Scraplab entrance 4019 | -8/Recycling | Entered Scraplab 4431 | -8/Recycling | Learned location of 1 exit from Extension 4463 | -8/Recycling | Identified exit to Factory 4463 | -8/Recycling | Identified exit to Scraptown 4483 | -8/Recycling | Learned Factory trap positions 4498 | -8/Recycling | Learned location of 1 exit from Recycling 4505 | -8/Recycling | Learned Factory emergency access door positions 4885 | -8/Recycling | Entered Scraptown 5031 | -8/Scraptown | Scanned Subdweller tech in exchange for log data 5039 | -8/Scraptown | Learned Research terminal intel 5041 | -8/Scraptown | Learned location of 2 exits from Upper Caves 5582 | -8/Scraptown | Visited UFD Registry 5582 | -8/Scraptown | Registered with UFD as "Protonunit" 5724 | -8/Scraptown | Delivered Scrap Shield to a Scientist 5785 | -8/Scraptown | Visited Chapter 10 5807 | -8/Scraptown | Visited Analyses Database 5836 | -8/Scraptown | Visited DA-N13 Charitable Foundation 5841 | -8/Scraptown | Found DCF Scrap (29 items) 5883 | -8/Scraptown | Visited Curators Association 5929 | -8/Scraptown | Visited Junk Repository 5969 | -8/Scraptown | Visited Science Guys 6013 | -8/Scraptown | Visited Cartography Club 6070 | -8/Scraptown | Visited Assassins FH 6084 | -8/Scraptown | Visited TADAMA 6103 | -8/Scraptown | Visited Junk Repository 6120 | -8/Scraptown | Visited Cyclists 6129 | -8/Scraptown | Entered Cyclist Reading Room 6160 | -8/Scraptown | Visited CR-KLE's Repair Center 6173 | -8/Scraptown | Visited Awakened 6198 | -8/Scraptown | Visited Cave Peace 6458 | -8/Scraptown | Learned location of Recycling (-8) 6458 | -8/Scraptown | Learned location of Lower Caves (-7) 6458 | -8/Scraptown | Learned location of Armory (-4) 6458 | -8/Scraptown | Learned 12 Materials zone layouts 6458 | -8/Scraptown | Learned 8 Access zone layouts 6458 | -8/Scraptown | Learned 24 Upper Caves zone layouts 6458 | -8/Scraptown | Learned 12 Proximity Caves zone layouts 6458 | -8/Scraptown | Learned 20 Proximity Caves zone layouts 6458 | -8/Scraptown | Learned location of 3 exits from Factory 6458 | -8/Scraptown | Learned location of 2 exits from Proximity Caves 6458 | -8/Scraptown | Learned location of 3 exits from Proximity Caves 6474 | -8/Scraptown | Found Deep Structural Scanner 6643 | -8/Scraptown | CR-KLE repaired 3 parts 6791 | -8/Scraptown | Met Optimus 6791 | -8/Scraptown | Accepted into 0bPrime 6864 | -8/Scraptown | Entered Factory 6864 | -6/Factory | Evolved 8 slots: Propulsion x3, Utility x5 6865 | -6/Factory | Identified exit to Factory 6865 | -6/Factory | Identified exit to Lower Caves 6867 | -6/Factory | Loaded intel: 86 trap records 6869 | -6/Factory | Loaded intel: 6 fabricator locations 7095 | -6/Factory | Spotted B-75 Beast 7143 | -6/Factory | Destroyed B-75 Beast 7200 | -6/Factory | Repaired Imp. Light Armor Plating 7239 | -6/Factory | Tech Extrapolator generated special schematic: Deep Structural Scanner 7314 | -6/Factory | Loaded intel: 8 recycling unit locations 7323 | -6/Factory | Learned location of 2 exits from Lower Caves 7407 | -6/Factory | Learned location of Hub_04(d) (-4) 7433 | -6/Factory | Loaded intel: 26 terminal locations 7443 | -6/Factory | Build established: Derelict-Sprinter 7449 | -6/Factory | Learned location of Protoforge (-2) 7450 | -6/Factory | Learned location of Upper Caves (-4) 7456 | -6/Factory | Learned 2 Proximity Caves zone layouts 7462 | -6/Factory | Learned 2 Proximity Caves zone layouts 7478 | -6/Factory | Learned Extension emergency access door positions 7505 | -6/Factory | Learned 4 Upper Caves zone layouts 7805 | -6/Factory | Build established: Sprinter 8165 | -6/Factory | Central database locked down 8501 | -6/Factory | Repaired Imp. Propulsion Shielding 8684 | -6/Factory | Learned location of 1 exit from Proximity Caves 8752 | -6/Factory | Learned location of 2 exits from Proximity Caves 8791 | -6/Factory | Learned Hub_04(d) emergency access door positions 8806 | -6/Factory | Tech Extrapolator generated special schematic: Machine Rigger 8811 | -6/Factory | Sucked down chute 8811 | -6/Factory | Entered Waste 8817 | -6/Waste | Spotted C-40 Crusher 8817 | -6/Waste | Spotted C-40 Crusher 8817 | -6/Waste | Spotted C-40 Crusher 8819 | -6/Waste | Spotted C-40 Crusher 8821 | -6/Waste | Discovered new exit (range 10) 8823 | -6/Waste | Identified exit to Factory 8823 | -6/Waste | Entered Factory 8879 | -6/Factory | Loaded intel: 8 recycling unit locations 9372 | -6/Factory | Identified exit to Garrison 9495 | -6/Factory | Learned location of 2 exits from Upper Caves 9554 | -6/Factory | Learned 2 Upper Caves zone layouts 9676 | -6/Factory | Learned location of 1 exit from Upper Caves 9697 | -6/Factory | Learned location of 1 exit from Proximity Caves 9732 | -6/Factory | Learned Extension non-interactive machine intel 9804 | -6/Factory | Learned location of Lower Caves (-6) 9855 | -6/Factory | Learned Extension stockpile data 9858 | -6/Factory | Entered Garrison 9871 | -6/Garrison | Phase Generator disabled 9888 | -6/Garrison | Spotted Executioner 9888 | -6/Garrison | Spotted Executioner 9898 | -6/Garrison | Triggered checkpoint 9918 | -6/Garrison | Garrison Relay disabled 9948 | -6/Garrison | Triggered checkpoint 10068 | -6/Garrison | Spotted B-75 Beast 10098 | -6/Garrison | Discovered new exit (range 9) 10103 | -6/Garrison | Garrison Relay disabled 10128 | -6/Garrison | Triggered checkpoint 10155 | -6/Garrison | Triggered checkpoint 10209 | -6/Garrison | Discovered new exit (range 12) 10220 | -6/Garrison | Triggered checkpoint 10224 | -6/Garrison | Installed Relay Interface Framework 10237 | -6/Garrison | Spotted B-90 Cyclops 10240 | -6/Garrison | Identified exit to Factory 10240 | -6/Garrison | Entered Factory 10288 | -6/Factory | Discovered exit to Factory (range 7) 10400 | -6/Factory | Build established: Scout 10441 | -6/Factory | Loaded intel: 8 recycling unit locations 10575 | -6/Factory | Fabricated Deep Structural Scanner (x1) 10857 | -6/Factory | Discovered exit to Factory (range 6) 10940 | -6/Factory | Search patrols dispatched 11003 | -6/Factory | Learned Hub_04(d) non-interactive machine intel 11004 | -6/Factory | Learned Factory emergency access door positions 11031 | -6/Factory | Learned location of 1 exit from Lower Caves 11092 | -6/Factory | Core integrity fell below 50% 11232 | -6/Factory | Repaired Cld. Cesium-ion Thruster 11290 | -6/Factory | Search patrols dispatched 11429 | -6/Factory | Spotted B-75 Beast 11556 | -6/Factory | Entered Lower Caves 11557 | -6/Lower Caves | Identified exit to Lower Caves 11558 | -6/Lower Caves | UFD Scientist delivered a prototype 11559 | -6/Lower Caves | Found Prototype Protection 11559 | -6/Lower Caves | Identified Enh. Scrap Shield 11576 | -6/Lower Caves | Found Alien Artifact 11576 | -6/Lower Caves | Identified Core Expander 11576 | -6/Lower Caves | Installed Core Expander, added new Weapon slot 11616 | -6/Lower Caves | Spotted B-75 Beast 11752 | -6/Lower Caves | Entered another Lower Caves area 11754 | -6/Lower Caves | Identified exit to Data Miner 11768 | -6/Lower Caves | Entered an active Warlord outpost 11769 | -6/Lower Caves | Learned location of 1 exit from Factory 11769 | -6/Lower Caves | Learned Armory emergency access door positions 11834 | -6/Lower Caves | Build established: Infiltrator-Ninja 11841 | -6/Lower Caves | Entered Data Miner 11841 | -6/Data Miner | Discovered new exit (range 6) 11846 | -6/Data Miner | Met Data Miner 11850 | -6/Data Miner | Learned location of Section 7 (-2) 11850 | -6/Data Miner | Acquired the access code to Warlord's prototype stash 11853 | -6/Data Miner | Received God Mode back door access code from Data Miner 11865 | -6/Data Miner | Identified exit to Proximity Caves 11865 | -6/Data Miner | Entered Proximity Caves 11867 | -5/Proximity Caves | Learned location of 1 exit from Upper Caves 11872 | -5/Proximity Caves | Learned location of Warlord (-5) 11979 | -5/Proximity Caves | Attracted the attention of an 0b10 checkpoint 12001 | -5/Proximity Caves | Entered Factory 12001 | -5/Factory | Evolved 2 slots: Power x1, Utility x1 12002 | -5/Factory | Identified exit to Factory 12002 | -5/Factory | Identified exit to Upper Caves 12032 | -5/Factory | Spotted B-75 Beast 12059 | -5/Factory | Incoming investigation squad redirected 12069 | -5/Factory | Fabricated Cmb. Antigrav System (x2) 12096 | -5/Factory | Fabricated Imp. Antigrav System? 12239 | -5/Factory | Loaded intel: 8 recycling unit locations 12461 | -5/Factory | Lost 7 parts (1p2n3u1w) 12701 | -5/Factory | Incoming investigation squad redirected 12723 | -5/Factory | Found Fusion Bomb Launcher 12777 | -5/Factory | Build established: Scavenger-Mutant 12893 | -5/Factory | Lost 9 parts (2p1n3u3w) 13201 | -5/Factory | Build established: Scavenger-Tank 13250 | -5/Factory | Fabricated Adv. Cooling System? 13350 | -5/Factory | Repaired Hpw. Shock Rifle 13374 | -5/Factory | Incoming investigation squad redirected 13466 | -5/Factory | System corruption reached 10% 13767 | -5/Factory | Central database locked down 13826 | -5/Factory | Core integrity fell below 50% 14045 | -5/Factory | Garrison activated, responded to threat 14091 | -5/Factory | Identified exit to Garrison 14091 | -5/Factory | Entered Garrison 14103 | -5/Garrison | Triggered checkpoint 14155 | -5/Garrison | Build established: Gladiator 14182 | -5/Garrison | Garrison Relay disabled 14275 | -5/Garrison | Triggered checkpoint 14276 | -5/Garrison | Discovered new exit (range 5) 14327 | -5/Garrison | Identified exit to Factory 14342 | -5/Garrison | Lost 3 parts (1n2u) 14376 | -5/Garrison | Spotted B-75 Beast 14385 | -5/Garrison | Triggered checkpoint 14397 | -5/Garrison | Triggered checkpoint 14409 | -5/Garrison | Destroyed B-75 Beast 14418 | -5/Garrison | Core integrity fell below 20% 14419 | -5/Garrison | Triggered checkpoint 14445 | -5/Garrison | Lost 3 allies 14458 | -5/Garrison | Lost 8 parts (2p2n2u2w) 14462 | -5/Garrison | Destroyed 7 combat bots 14634 | -5/Garrison | Discovered exit to Factory (range 10) 14662 | -5/Garrison | Discovered exit to Factory (range 14) 14662 | -5/Garrison | Discovered exit to Factory (range 83) 14662 | -5/Garrison | Discovered exit to Factory (range 79) 14662 | -5/Garrison | Discovered exit to Factory (range 57) 14764 | -5/Garrison | Spotted Striker 14828 | -5/Garrison | Build established: Scavenger-Gunner 14928 | -5/Garrison | Expanded RIF knowledge: Hotswap 14953 | -5/Garrison | Garrison Relay disabled 14975 | -5/Garrison | Entered Factory 15179 | -5/Factory | Spotted B-75 Beast 15237 | -5/Factory | Lost 3 allies 15319 | -5/Factory | Loaded intel: 8 recycling unit locations 15341 | -5/Factory | Incoming investigation squad redirected 15472 | -5/Factory | Incoming investigation squad redirected 15475 | -5/Factory | Build established: Scavenger-Sprinter 15575 | -5/Factory | Search patrols dispatched 15617 | -5/Factory | Entered Upper Caves 15618 | -5/Upper Caves | Identified exit to Upper Caves 15661 | -5/Upper Caves | Entered another Upper Caves area 15662 | -5/Upper Caves | Identified exit to Warlord 15674 | -5/Upper Caves | Entered Factory 15674 | -4/Factory | Evolved 2 slots: Propulsion x1, Utility x1 15675 | -4/Factory | Identified exit to Research 15770 | -4/Factory | Loaded intel: 8 recycling unit locations 15913 | -4/Factory | Discovered exit to Research (range 16) 16005 | -4/Factory | Incoming investigation squad redirected 16072 | -4/Factory | Learned 4 Quarantine zone layouts 16105 | -4/Factory | Learned Testing trap positions 16105 | -4/Factory | Incoming investigation squad redirected 16149 | -4/Factory | Learned Armory security intel 16150 | -4/Factory | Learned 4 Testing zone layouts 16151 | -4/Factory | Learned Research emergency access door positions 16153 | -4/Factory | Discovered new exit (range 15) 16160 | -4/Factory | Identified exit to Upper Caves 16206 | -4/Factory | Discovered exit to Research (range 12) 16398 | -4/Factory | Build established: Hacker-Sprinter 16405 | -4/Factory | Discovered new exit (range 16) 16445 | -4/Factory | Spotted B-86 Titan 16456 | -4/Factory | Manually triggered Chute Trap 16456 | -4/Factory | Sucked down chute 16456 | -4/Factory | Entered Waste 16478 | -4/Waste | Warlord forces began an assault 16483 | -4/Waste | Lost 6 parts (1p2n3u) 16527 | -4/Waste | Spotted C-40 Crusher 16532 | -4/Waste | Allies destroyed C-40 Crusher 16534 | -4/Waste | Spotted C-40 Crusher 16537 | -4/Waste | Allies destroyed C-40 Crusher 16537 | -4/Waste | Spotted C-40 Crusher 16541 | -4/Waste | Spotted C-40 Crusher 16548 | -4/Waste | Allies destroyed C-40 Crusher 16550 | -4/Waste | Allies destroyed C-40 Crusher 16562 | -4/Waste | Spotted C-40 Crusher 16573 | -4/Waste | Spotted C-40 Crusher 16574 | -4/Waste | Allies destroyed C-40 Crusher 16588 | -4/Waste | Discovered new exit (range 12) 16602 | -4/Waste | Lost 3 allies 16611 | -4/Waste | Identified exit to Factory 16658 | -4/Waste | Entered Factory 16658 | -4/Factory | Accompanied by 16 allies 16676 | -4/Factory | Loaded intel: 8 recycling unit locations 16709 | -4/Factory | Incoming investigation squad redirected 16784 | -4/Factory | Lost 4 allies 16992 | -4/Factory | Incoming investigation squad redirected 17017 | -4/Factory | Repaired Field Propulsion Array 17056 | -4/Factory | Repaired Imp. Propulsion Shielding 17070 | -4/Factory | Discovered exit to Research (range 10) 17098 | -4/Factory | Discovered exit to Upper Caves (range 14) 17098 | -4/Factory | Identified exit to Extension 17098 | -4/Factory | Identified exit to Armory 17158 | -4/Factory | First assault squad dispatched 17206 | -4/Factory | Lost 3 allies 17247 | -4/Factory | Unchained authorized (QV-33N) 17288 | -4/Factory | Incoming investigation squad redirected 17296 | -4/Factory | Entered Upper Caves 17297 | -4/Upper Caves | Identified exit to Upper Caves 17327 | -4/Upper Caves | Lost 4 parts (1p1n2u) 17357 | -4/Upper Caves | Learned Research terminal intel 17358 | -4/Upper Caves | Attracted the attention of an 0b10 base 17358 | -4/Upper Caves | Learned Factory security intel 17358 | -4/Upper Caves | Learned Extension emergency access door positions 17358 | -4/Upper Caves | Learned Armory trap positions 17367 | -4/Upper Caves | Core integrity fell below 50% 17410 | -4/Upper Caves | Spotted B-86 Titan 17420 | -4/Upper Caves | Learned 12 Research zone layouts 17470 | -4/Upper Caves | Encountered a Warlord checkpoint 17479 | -4/Upper Caves | Entered another Upper Caves area 17480 | -4/Upper Caves | Identified exit to Zhirov 17535 | -4/Upper Caves | Learned 8 Research zone layouts 17538 | -4/Upper Caves | Encountered a Warlord checkpoint 17611 | -4/Upper Caves | Learned location of Quarantine (-2) 17612 | -4/Upper Caves | Entered Zhirov 17612 | -4/Zhirov | Discovered new exit (range 3) 17624 | -4/Zhirov | Learned location of Testing (-3) 17630 | -4/Zhirov | Found Alien Artifact 17630 | -4/Zhirov | Identified Integrated Dissipator 17630 | -4/Zhirov | Installed Integrated Dissipator, increased core heat dissipation (+20) 17753 | -4/Zhirov | Found Alien Artifact 17819 | -4/Zhirov | Cloak Generator disabled 17830 | -4/Zhirov | Enhanced Grunts warped into view 17833 | -4/Zhirov | Identified exit to Proximity Caves 18016 | -4/Zhirov | Build established: Hacker-Gladiator 18119 | -4/Zhirov | Entered Proximity Caves 18263 | -3/Proximity Caves | Attracted the attention of an 0b10 checkpoint 18506 | -3/Proximity Caves | Entered Research 18506 | -3/Research | Evolved 2 slots: Utility x1, Weapon x1 18507 | -3/Research | Identified exit to Testing 18510 | -3/Research | Loaded intel: 22 terminal locations 18572 | -3/Research | Incoming investigation squad redirected 18656 | -3/Research | Loaded intel: 5 recycling unit locations 18671 | -3/Research | Incoming investigation squad redirected 18724 | -3/Research | Unchained authorized (QV-33N) 18760 | -3/Research | Found Prototype Device 18760 | -3/Research | Identified Adv. EM Shield 18799 | -3/Research | Entered Testing 18801 | -3/Testing | Loaded intel: 14 trap records 18861 | -3/Testing | Rewired PX-QILK32ZCMF 18880 | -3/Testing | Found Prototype Energy Cannon 18880 | -3/Testing | Identified Cld. Nova Cannon 18927 | -3/Testing | Discovered new exit (range 15) 18934 | -3/Testing | Found Prototype Processor 18934 | -3/Testing | Identified Exp. Signal Interpreter 18952 | -3/Testing | Identified exit to Research 18953 | -3/Testing | Entered Research 18953 | -2/Research | Evolved 2 slots: Weapon x2 18954 | -2/Research | Identified exit to Quarantine 18955 | -2/Research | Loaded intel: 22 terminal locations 18973 | -2/Research | Lost 3 parts (1n2u) 19052 | -2/Research | Discovered new exit (range 3) 19053 | -2/Research | Identified exit to Access 19104 | -2/Research | Spotted B-90 Cyclops 19354 | -2/Research | Lost 4 parts (1p1n2u) 19389 | -2/Research | Identified Transdimensional Reconstructor 19389 | -2/Research | Warped through subspace 19417 | -2/Research | Lost 9 parts (1p7n1w) 19444 | -2/Research | Scraphulk reinforcements arrived 19550 | -2/Research | Discovered exit to Quarantine (range 6) 19717 | -2/Research | Found Prototype Hackware 19717 | -2/Research | Identified Exp. Hacking Suite 19849 | -2/Research | Entered Quarantine 19849 | -2/Quarantine | Accompanied by 1 ally 19906 | -2/Quarantine | Found Alien Artifact 19906 | -2/Quarantine | Identified Phase Armor 19915 | -2/Quarantine | Cryocooling Duct disabled 19930 | -2/Quarantine | Ambient heat levels rising (+20) 19930 | -2/Quarantine | Non-combat units ordered to evacuate 20001 | -2/Quarantine | Cryocooling Duct disabled 20016 | -2/Quarantine | Ambient heat levels rising (+20) 20016 | -2/Quarantine | Combat units ordered to evacuate 20055 | -2/Quarantine | Found Prototype Launcher 20055 | -2/Quarantine | Identified Enh. Gamma Bomb Array 20064 | -2/Quarantine | Found Alien Energy Cannon 20064 | -2/Quarantine | Identified Core Cannon 20084 | -2/Quarantine | Found Prototype Device 20084 | -2/Quarantine | Identified Exp. Thermal Shield 20116 | -2/Quarantine | Quarantine Guard activated 20144 | -2/Quarantine | Found Alien Slashing Weapon 20144 | -2/Quarantine | Identified Sigix Broadsword 20162 | -2/Quarantine | Incoming investigation squad redirected 20187 | -2/Quarantine | Incoming investigation squad redirected 20209 | -2/Quarantine | Learned Access recycling unit intel 20254 | -2/Quarantine | Spotted Quarantine Guard 20261 | -2/Quarantine | Identified exit to Protoforge 20274 | -2/Quarantine | Spotted Quarantine Guard 20279 | -2/Quarantine | Spotted Quarantine Guard 20305 | -2/Quarantine | Learned Research stockpile data 20340 | -2/Quarantine | Spotted Quarantine Guard 20350 | -2/Quarantine | Build established: Hacker-Scout 20364 | -2/Quarantine | Destroyed Quarantine Guard 20368 | -2/Quarantine | Learned Research emergency access door positions 20389 | -2/Quarantine | Learned Section 7 trap positions 20411 | -2/Quarantine | Core integrity fell below 50% 20421 | -2/Quarantine | Learned location of 1 exit from Research 20451 | -2/Quarantine | Spotted Quarantine Guard 20465 | -2/Quarantine | Learned location of 2 exits from Research 20470 | -2/Quarantine | Spotted Quarantine Guard 20480 | -2/Quarantine | Cryocooling Duct disabled 20495 | -2/Quarantine | Ambient heat levels rising (+20) 20501 | -2/Quarantine | Cryocooling Duct disabled 20504 | -2/Quarantine | Cryocooling Duct disabled 20516 | -2/Quarantine | Ambient heat levels rising (+20) 20519 | -2/Quarantine | Ambient heat levels rising (+20) 20644 | -2/Quarantine | Spotted Quarantine Guard 20719 | -2/Quarantine | Found Alien Artifact 20719 | -2/Quarantine | Identified Core Reset Matrix 20719 | -2/Quarantine | Used Core Reset Matrix 20723 | -2/Quarantine | Detected hypermatrix surge 20723 | -2/Quarantine | Sensed 15 artifacts in vicinity 20737 | -2/Quarantine | Central database locked down 20800 | -2/Quarantine | Spotted Quarantine Guard 21048 | -2/Quarantine | Incoming investigation squad redirected 21065 | -2/Quarantine | Found Hpw. Transdimensional Reconstructor 21070 | -2/Quarantine | Found Transdimensional Reconstructor 21072 | -2/Quarantine | Found Transdimensional Reconstructor 21077 | -2/Quarantine | Found Dimensional Node Initializer 21196 | -2/Quarantine | Incoming investigation squad redirected 21411 | -2/Quarantine | Found Subatomic Replicator 21413 | -2/Quarantine | Used Subatomic Replicator to create Supercharged TR 21416 | -2/Quarantine | Discovered exit to Access (range 3) 21565 | -2/Quarantine | Met incapacitated Sigix Warrior 21565 | -2/Quarantine | Lockdown squad dispatched 21574 | -2/Quarantine | Acquired the access code to the Sigix quarantine chamber 21575 | -2/Quarantine | Unlocked Sigix quarantine chamber 21586 | -2/Quarantine | Found Terrabomb 21586 | -2/Quarantine | Used Terrabomb 21889 | -2/Quarantine | Found Phase Redirector 21902 | -2/Quarantine | Found Sigix Containment Pod 21925 | -2/Quarantine | Found Sigix Corpse 21930 | -2/Quarantine | Found Sigix Corpse 21962 | -2/Quarantine | Spotted Fortress 21981 | -2/Quarantine | Discovered new exit (range 5) 21981 | -2/Quarantine | Discovered exit to Protoforge (range 6) 21982 | -2/Quarantine | Entered Protoforge 21983 | -2/Protoforge | Sensed 2 artifacts in vicinity 22246 | -2/Protoforge | Spotted B-90 Cyclops 22247 | -2/Protoforge | Superfortress began startup sequence 22249 | -2/Protoforge | Spotted AP7-3 22250 | -2/Protoforge | Spotted AP7-3 22269 | -2/Protoforge | Spotted SKR-2 22269 | -2/Protoforge | Spotted SKR-2 22269 | -2/Protoforge | Spotted SKR-2 22282 | -2/Protoforge | UFD initiated attack on Protoforge (Readiness: Maximal) 22282 | -2/Protoforge | Loaded intel: 3 recycling unit locations 22292 | -2/Protoforge | Spotted EXE-6 22292 | -2/Protoforge | Spotted EXE-6 22295 | -2/Protoforge | Scraphulk reinforcements arrived? 22301 | -2/Protoforge | Found Prototype Processor 22301 | -2/Protoforge | Identified Exp. Melee Analysis Suite 22317 | -2/Protoforge | Allies destroyed AP7-3 22318 | -2/Protoforge | Optimus greeted in Protoforge 22349 | -2/Protoforge | Initialized slip node 22355 | -2/Protoforge | Lost 6 allies 22372 | -2/Protoforge | Spotted Hotshot 22379 | -2/Protoforge | Spotted Hotshot 22382 | -2/Protoforge | Warped through subspace to slip node 22383 | -2/Protoforge | Allies destroyed Hotshot 22390 | -2/Protoforge | Spotted Striker 22414 | -2/Protoforge | Lost 5 parts (1p2n1u1w) 22422 | -2/Protoforge | Found Prototype Device 22422 | -2/Protoforge | Identified Cep. Matter Streamer 22425 | -2/Protoforge | Found Prototype Power Core 22425 | -2/Protoforge | Identified Cep. Zero-point Core 22427 | -2/Protoforge | Found Prototype Storage 22427 | -2/Protoforge | Identified Cep. NT7 Matterbank 22429 | -2/Protoforge | Lost 6 allies 22432 | -2/Protoforge | Found Prototype Device 22432 | -2/Protoforge | Identified Cep. Antimissile System 22439 | -2/Protoforge | Found Cep. Zero-point Core 22455 | -2/Protoforge | Found Prototype Ballistic Gun 22455 | -2/Protoforge | Identified Cep. XC Strikerail 22545 | -2/Protoforge | Fabricated Q-thruster (x2) 22699 | -2/Protoforge | Spotted Striker 22700 | -2/Protoforge | Spotted Striker 22722 | -2/Protoforge | Spotted Decapitator 22722 | -2/Protoforge | Spotted Decapitator 22722 | -2/Protoforge | Spotted Decapitator 22722 | -2/Protoforge | Spotted Decapitator 22793 | -2/Protoforge | Core integrity fell below 20% 22811 | -2/Protoforge | Spotted Executioner 22825 | -2/Protoforge | Spotted Executioner 22833 | -2/Protoforge | Lost 6 parts (4n2u) 22834 | -2/Protoforge | Destroyed by S-43 Plague with Heavy Machine Gun Last Messages --------------- 22814_ P-80 Master resets S-43 Plague, system corruption cleaned. 22821_ N-04 Retriever inserts Biometal Leg into Forge Plexus. 22822_ N-04 Retriever inserts Prototype Piercing Weapon into Forge Plexus. 22823_ N-04 Retriever inserts Unknown Ballistic Gun into Forge Plexus. 22828_ Penetrated by Slug. 22828_ FP Insight Station damaged. 22830_ The unstable cave ceiling collapses. 22830_ P-80 Master crushed by falling debris. 22830_ N-04 Retriever inserts Unknown Hover Unit into Forge Plexus. 22831_ N-04 Retriever inserts Unknown Wheel into Forge Plexus. 22832_ N-04 Retriever inserts Unknown Reactor into Forge Plexus. 22833_ N-04 Retriever inserts Unknown Ballistic Gun into Forge Plexus. Map ----- +----------------------------------------------------+ | ????????????#########"###########????????????????? | | ????????????????????## ##????????????????????????? | | ?????????????????????## ##???????????????????????? | | ??????????????????????#####??????????????????????? | | ?????????################;######################## | | ?????# | | ?????# "" "" " | | ?????# """" " "" ""p """ " | | ?????? "" " "" """ """" "" "" | | ?????? """ """" """ " """ "" " | | ??????? "" s "" """ | | ??????? " "" s"" " """" | | ??????? ???" "" """" " " | | ?????????? " "" " " " | | ????????? "" " """ " "" " | | ????????" " "" """""" """ "" " | | ?????? "" """ " | | ?????# "" "" """ " """ | | ?????# """"" "" " """" " "" "" | | ?????# " " " """ " | | ?????# " " "" """" " " " """ | | ?????# """"" "" "" " " | | ?????# " "" " K """"""""" | | ?????# """" "" """"""""""""""" "" | | ?????# """" "" n""""""""""""""""" "" | | ?????# " @ """"""""""""""""""" | | ?????# "" " """"""""""""""""""""" % | | ?????# " """"""""""""""""""""""" | | ?????# " "" """"""""""""""""""""""""" | | ?????# """ " """"""""""""""""""""""""""" | | ?????# "" "" " """"""""""""""""""""""""""" | | ?????# "" " s "" """"""""""""""""""""""""""" | | ?????# " " """""""""""""""""""""""""""" | | ?????# "" " """""""""""""""""""""""""""" | | ?????# " """""""""""""""""""""""""""" | | ?????# "" """""""""""""""""""""""""""" | | ?????# """ n"""""""""""""""""""""""""""" | | ?????# % "" """""""""""""""""""""""""""" | | ?????# " " " """""""""""""""""""""""""""" | | ?????# " """ """"" " """""""""""""""""""""""""""" | | ?????# "" " """""""""""""""""""""""""""" | | ?????# """"""""""""""""""""""""""" | | ####?# """"""""""""""""""""""""""" | | ###### """"""" " """"""""""""""""""""""""""" | | ## ### """ " " """"""""""""""""""""""""" | | / " " """"""""""""""""""""""" | | / "" """"""""""""""""""""" | | / "" "" "" % """"""""""""""""""" | | ## ### "" "" " "" """"""""""""""""" " | | ###### "" """ %""""""""""""""" "" " | +----------------------------------------------------+ Best States ------------- Heat Dissipation 138 Energy Generation 43 Energy Capacity 750 Matter Stores 300 Matter Capacity 1050 Sight Range 22 Robot Scan Range 18 Terrain Scan Range 14 Terrain Scan Density 85 ECM Strength 1 Additional Mass Support 20 Corruption Containment 12 Armor Coverage 800 Resistance: KI 30 Resistance: TH 30 Propulsion Shielding 66 Weapon Cycling 20 Melee Speed Boost 20 Phase Shifting 15 Evasion (%) 76 Targeting Accuracy 5 Melee Accuracy 12 Launcher Accuracy 30 Target Analysis 8 Core Analysis 6 Recoil Reduction 2 Energy Filtering 30 Particle Charging 20 Offensive Hacking 50 Defensive Hacking 10 Relay Coupler Types 3 Relay Coupler Value 56 Authchip Count 1 Trap Extractor Capacity 6 Item Schematics ----------------- Q-thruster | -2/Quarantine | Scanalyzed Imp. System Guard | -2/Quarantine | Extracted Stealth Drone Bay | -2/Quarantine | Extracted Exp. Myomer Leg | -2/Quarantine | Extracted Imp. Launcher Guidance Computer | -2/Quarantine | Extracted Adv. Trap Extractor | -2/Quarantine | Extracted Gravmag Array | -2/Quarantine | Extracted Focal Shield | -2/Quarantine | Extracted Imp. Point Defense System | -2/Quarantine | Extracted Imp. Gyrokinetic Inverter | -2/Quarantine | Extracted Adv. Melee Analysis Suite | -2/Quarantine | Extracted Adv. Particle Charger | -2/Quarantine | Extracted HERF Cannon | -2/Quarantine | Extracted Reaction Control System | -2/Quarantine | Extracted Adv. Focal Shield | -2/Quarantine | Scanalyzed Adv. Heavy Siege Treads | -2/Quarantine | Scanalyzed Biometal Heavy Treads | -2/Quarantine | Scanalyzed Recoil Stabilizer | -2/Quarantine | Extracted Thermal Shield | -2/Quarantine | Extracted Impulse Thruster Array | -2/Quarantine | Extracted Imp. Arc Projector | -2/Quarantine | Extracted Quantum Capacitor | -2/Quarantine | Extracted Adv. Transmission Jammer | -2/Quarantine | Extracted Gyrokinetic Inverter | -2/Quarantine | Extracted Adv. Point Defense System | -2/Quarantine | Extracted Impulse Thruster | -2/Quarantine | Extracted Gamma Bomb Array | -2/Quarantine | Extracted Imp. Shock Absorption System | -2/Quarantine | Extracted Exp. Flexi-carbon Leg | -2/Quarantine | Extracted Imp. System Shield | -2/Quarantine | Extracted Drone Bay | -2/Quarantine | Extracted Phase Shifter | -2/Quarantine | Extracted Helical Railgun | -2/Protoforge | Archive Enh. Coil Gun | -2/Protoforge | Archive Robot Schematics ------------------ K-01 Serf | -2/Protoforge | Archive Fabricated ------------ Deep Structural Scanner | x1 | -6/Factory | Authchip Cmb. Antigrav System | x2 | -5/Factory | Authchip Imp. Antigrav System | x2 | -5/Factory | Authchip Adv. Cooling System | x2 | -5/Factory | Authchip Q-thruster | x2 | -2/Protoforge | Authchip Repaired ---------- Imp. Light Armor Plating | 12% | -6/Factory Imp. Propulsion Shielding | 39% | -6/Factory Cld. Cesium-ion Thruster | 40% | -6/Factory Hpw. Shock Rifle | 7% | -5/Factory Field Propulsion Array | 50% | -4/Factory Imp. Propulsion Shielding | 50% | -4/Factory Studied --------- Nuclear Pulse Array | -2/Quarantine | Hacked Alien Tech Used ----------------- Core Expander Integrated Dissipator Transdimensional Reconstructor Phase Armor Core Cannon Sigix Broadsword Core Reset Matrix Subatomic Replicator Terrabomb Dimensional Node Initializer Supercharged TR Achievements -------------- None Challenges ------------ None Game ------ Seed SurgeOpticalUnit Manual? 0 Play Time 06:26:07 Cumulative 814.0 hours Start 2025.12.20 @ 11:43:27 End 2025.12.21 @ 20:55:32 Sessions 7 Manual Loads 0 Difficulty Rogue Special Mode None Game No. 331 Rogue 331 Adventurer 0 Explorer 0 Win Type - Total 85 Types 43/6/15/6/6/1/1/3/0/4 Lore% 97 Gallery% 91 Achievement% 84 Wizard Run 0 Options --------- Layout 1 ASCII 0 Keyboard 0 Movement Numpad Keybinds 0 Fullscreen 1 Font 24/Smallcaps Map View 50x35 Zoom Use 0% Tactical HUD 1 Map Filters NONE Filters NONE Steam 1 RUN: c3f678b7-9465-4785-97a9-36246d56baaf